{"text_format":"3","workbook":"xlsx","n_sheets":15,"sheets":["История","География","Физика","Химия","труд ","английский","Русский ","Математика","Татарский ","Юный ","студент","ЮНЕСКО","не понятки","статьи","Лист1"],"not_rendered":{"defined_names":1},"read":"whole","date_system":"1900"}

{"sheet":"История","index":0,"n_rows":186,"n_cols":10,"rows_kept":186}
[null,"Наименование\nОУ\n","Направление конкурсной работы","Название работы","Предмет ","ФИО автора работы","Класс ","Руководитель ","работа","оплата"]
[1,"МАОУ \"Лицей №78 им. А.С. Пушкина\"","История и краеведение, жизнь и научная деятельность К. А. Валиева","Актуализация наименований автобусных остановок в городе Набережные Челны","История, краеведение, обществознание","Шакуров Раис Рафикович","8а","Рустами Марина Вячеславовна, учитель высшей квалификационной категории"]
[2,"МБОУ \"Малосуньская ООШ\"","История и краеведение, жизнь и научная деятельность К.А.Валиева.","Мирсәет  Яруллин  – авылыбыз горурлыгы","История","Сайфуллина Гузель Ралифовна, Гайнутдинова Алсу Раилевна, Зианшина Зиляра Алмазовна","8 класс","Мухаметзянова Лилия Саматовна, учитель истории и обществознания, I категории"]
[3,"МБОУ \"СОШ №31\" НМР РТ, МБУ ДО «ДТДиМ им.И.Х.Садыкова» НМР РТ","История и краеведение","История формирования и особенности письменности народа кряшен ","Краеведение","Бадгиев Булат Наилевич, Бадгиева Василя Наилевна","8, 6","Бадгиева Эльза Даниязовна, Даутова Алевтина Петровна"]
[4,"МБОУ \"Гимназия№2\" имени Баки Урманче НМР РТ","История и краеведение","Героями не рождаются…        (Гайнуллин Рифкат Хайруллович - полный кавалер ордена Славы)","История","Сахибгареева Азалия Алмазовна",9,"Галимова Гульнара Нургалеевна,  Муратова Лариса Миншаеховна,"]
[5,"МБОУ cредняя общеобразовательная школа №4 Бугульминского  района Республики Татарстан","история","Фронтовая фляжка прадеда","история","Чеканова Анастасия Владимировна","5А","Насибуллина Гульнара Анваровна"]
[6,"МБОУ \"Средняя общеобразовательная школа № 19\" НМР РТ","          история, краеведение, жизнь и научная деятельность К.А. Валиева","Чувашский нродный костюм от древности до современности","история","Имангулова Екатерина Александровна","10 класс","Маслова И.Е., учитель истории и обществознания, I квалификационной категории"]
[7," \"Средняя общеобразовательная школа  № 4 г. Мамадыш\" Мамадышского  района Республики Татарстан","• История и краеведение, жизнь и научная деятельность К. А. Валиева","Славные страницы комсомола","история (краеведение)","Раимжанова Мээрим \nХамидуллина Гузель","9, 11","Шишкина Т.А. \nСаматова А.З."]
[8,"МБОУ \"Гимназия №32\"","История, краеведение","Значимый труд простого человека","Краеведение ","Юганова Ангелина","6 а","Юганова Е.В., учитель истории и обществознания"]
[9,"МБОУ \"Гимназия №32\"","История, краеведение","История развития национального движения в Татарстане: взгляд современников\n\n","История","Сагидуллина Лилия","11 а ","Юганова Евгения Михайловна,"]
[10,"МБОУ \"Джалильская средняя  общеобразовательная школа №2\"","Краеведение","По следам нефтяников","География, родной язык","Шайдуллина Айгуль Рубисовна Ягудина Дина Мисхатовна",11,"Калимуллина Р.З. Шайдуллина Л.К. Шайдуллина Ч.К."]
[11,"МБОУ \"Гимназия-интернат №13\" г.Нижнекамск","История и краеведение","Матери знаменитых людей истории и успешых личностей г.Нижнекамска ","семьеведение","Рудзий Нэля Васильевна","10А","Шигапова Миляуша Фоатовна"]
[12,"МБОУ \"Усалинская СОШ\" Мамадышского района РТ","история, краеведение.","Владимир авылы тамгалары","история,   краеведение.","Юзеев Альберт Валерьевич, Кирушин Виталий Климентович",10,"Консантинова                            Лидия Семеновна, учитель истории","бумажный вариант есть"]
[13,"МБОУ \"Владимировская ООШ\" Мамадышского района РТ","История и краеведение","Мои предки-моя гордость","история","Данилова Диана Демьяновна",5,"Данилова Любовь Алексеевна, учитель русского языка и литературы"]
[14,"МБОУ \"Большешиинская СОШ\"","История ,краеведение","Культ  дерева у марийцев","история","Сидорова Наталья Вадимовна",7,"Якимов Владислав Александрович"]
[15,"МБОУ \"Тавельская СОШ\"","История и краеведение","Гражданская война в Мамадышском уезде","История","Валынова Регина Олеговна",8,"Кузнецов Анатолий Васильевич, Кузнецова Елена Павловна"]
[16,"МБОУ \"Средняя общеобразовательная школа № 19\" НМР РТ","          история, краеведение, жизнь и научная деятельность К.А. Валиева","В жизни всегда есть место подвигу","история","Ветрова Анастасия","10 класс","Куряева Л.П"]
[17,"\"Мамадышская средняя общеобразовательная школа №4 города Мамадыш\" Мамадышского  районаРеспублики Татарстан","История и краеведение","\"Ул Әфган сугышыннан әйләнеп кайтмады\"","История","Давыдова Алия Лаврентьева","7а класс","Магфурова Рамзия Нурулловна"]
[18," «Средняя общеобразовательная школа №31 с углубленным изучением отдельных предметов» Нижнекамского муниципального района Республики Татарстан  ","История и краеведение ","У истоков улиц города Нижнекамска: Чабьиская и Ахтубинская","русский язык, география","Яна Былинкина, Маргарита Иванова",8,"Алевтина Петровна Даутова; Надежда Германовна Шандренкова,"]
[19,"МБОУ \" Сокольская СОШ\" Мамадышский муниципальный район Республики Татарстан","история, краеве -дение","«Внедрение инструментов тайм-менеджмента как направление повышения эффективности работы современного педагога» ","история","Волков Лев Евгеньевич",8,"Хохлова Людмила Николаевна"]
[20,"МБОУ  «Нижнеошминская средняя общеобразовательная школа»","История, краеведение","\"Ватан тарихында - гаиләм язмышы\"","История","Хасанова Ландыш Айратовна",7,"Галеева Насима Хусаиновна, учитель истории и обществознания"]
[21,"«Шадчинская средняя общеобразовательная школа» Мамадышского муниципального района РТ","История и краеведение, жизнь и научная деятельность К. А. Валиева","Педагоги в семье Фаляховых","История","Фаляхова Резеда Азатовна",11,"Ямалиев Марсель Василович"]
[22,"МБОУ \"Шемяковская ООШ\"","краеведение","Туган авылым географиясе","География","Мустафина Илюза Ильнуровна",9,"Шарипова Альфия Асхатовна"]
[23,"МБОУ \"Лицей № 177\" Ново-Савиновского района г. Казани ","История и краеведение, жизнь и научная деятельность К. А. Валиева","  Мой прадедушка-герой","История","  Лысенкова Есения Александровна",9,"Шамсувалиева Рауза Равильевна"]
[24,"МБОУ \"Лицей № 177\" Ново-Савиновского района г. Казани ","История и краеведение, жизнь и научная деятельность К. А. Валиева"," Константин Шуравин-побратим Гастелло ","История"," Романова Елизавета Сергеевна",8,"Шамсувалиева Рауза Равильевна, "]
[25,"МБОУ \"Средняя общеобразовательная школа № 19\" НМР РТ","          история, краеведение, жизнь и научная деятельность К.А. Валиева","Улицы моего города","история","Шаехова Ильсия Ильшатовна","9 класс","Маслова И.Е.Нуриахметова Р.З."]
[26,"                      МАОУ \"Лицей №2\" г. Альметьевска РТ","История, краеведение","История моей семьи в истории страны","История","Анисахарова Виктория Максимовна ",5,"Костина Анастасия Сергеевна, учитель истории и обществознания"]
[27,"ОШИ IT-лицей К(П)ФУ","История и краеведение, жизнь и научная деятельность К.А. Валиева","Литературая Казань. Создание электронного путеводителя","Русский язык и литература, информатика","Гараева Алсу Айратовна",10,"1. Махмутова Люция Рафаиловна - к.н.ф., учитель русского языка и литературы. 2. Аншукова Венера Маратовна - учитель информатики, высшая квалификацинная категория."]
[28,"МБОУ \"Лицей №2 имени академика  К.А.Валиева г.Мамадыш\"",{"$nulls":3},"Зайцева Лиана, Мисбахова Диляра",9,"Шишкина Ю.А."]
[29,"МБОУ \"Лицей № 177\" Ново-Савиновского района г. Казани ","История и краеведение, жизнь и научная деятельность К. А. Валиева","\"Великий соотечественник\"","История Татарстана","Калентьев Леонид Евгеньевич",8,"Сергеева С.В., заместитель директора по инновационной работе учитель высшей  квалификационной категории                                          Проворова О.А., преподаватель кафедры истории   и теории государства и права, КФУ      "]
[30,"МБОУ \"Лицей № 177\" Ново-Савиновского района г. Казани ","История и краеведение, жизнь и научная деятельность К. А. Валиева","«Казань и казанцы первой половины XIX века глазами русских писателей и краеведов»","История Татарстана","Гильмутдинова Александра Тимуровна",9,"Сергеева С.В., заместитель директора по инновационной работе учитель высшей  квалификационной категории                                          Проворова О.А., преподаватель кафедры истории   и теории государства и права, КФУ      "]
[31,"МАОУ «Лицей № 78 имени А.С.Пушкина» г. Набережные Челны","История","Эволюция танков во время Великой Отечественной войны","История","Хайруллин Амир Эрикович","6 В","Мухтярова Эльмира Исхаковна, учитель истории и обществознания, кандидат философских наук"]
[32,"МБОУ \"Нижнеякинская СОШ\" Мамадышского района  Республики Татарстан","история, краеведение","Балаларга багышланган гомер","История","Мубаракшин Ильдан Раилевич",9,"Валиахметова Альфина Хуснулловна, учитель истории и обществознания"]
{"$rows_empty":152}
[{"$f":"COUNT(A2:A185)","v":32}]

{"sheet":"География","index":1,"n_rows":95,"n_cols":10,"rows_kept":95}
[null,"Наименование\nОУ\n","Направление конкурсной работы","Название работы","Предмет ","ФИО автора работы","Класс ","Руководитель ","работа","оплата"]
[1,"МОУ\" Новохоперская гимназия № 1\"","география","Чернозем - Царь почв","география","Свирина Виктория Александровна",10,"Греченева Зинаида Николаевна, учитель географии"]
[2,"Муниципальное автономное общеобразовательное учереждение \"Академический лицей\" г. Магнитогорска","География, экономика","«Культурные особенности моей страны. Виртуальная экскурсия по городу Казань, в рамках ЮНЕСКО»","География","Мочалина Алина Сергеевна",11,"Кузнецова Яна Игоревна, учитель английского языка"]
[3,"«Средняя общеобразовательная школа №31 с углубленным изучением отдельных предметов» Нижнекамского  района Республики Татарстан  ","география ","Магия национальных костюмов кряшен и чувашей","русский язык, география","Кристина Кузнецова, Софья Моисеенко","7 , 8","Алевтина Петровна Даутова, у Надежда Германовна Шандренкова, "]
[4,"МАОУ \"Гимназия №61\" г.Набережные Челны","экономика, география","Название работы\n Развитие сельского хозяйства, ориентированного на производство органической продукции на примере республики Татарстан\n","география","Василов Артур","10  класс","Степанова Е.В."]
[5,"МАОУ \"Гимназия №61\" г.Набережные Челны","экономика, география","«Бесплатный сыр не только в мышеловке?» \n(Безусловный доход: за и против)  \n","география","Фаттахова Луиза","9  класс","Степанова Е.В."]
[6,"Казань Лицей №177","География, экономика","«Разработка экскурсионных маршрутов по карстовым формам рельефа г. Казани»","Геология","Пестерникова Екатерина Сергеевна",11,"Амиров Р. В., учитель географии первой категории; Сергеева С.В., учитель биологии высшей квалификационной категории  "]
{"$rows_empty":87}
[{"$f":"COUNT(A2:A94)","v":6}]

{"sheet":"Физика","index":2,"n_rows":100,"n_cols":10,"rows_kept":100}
[null,"Наименование\nОУ\n","Направление конкурсной работы","Название работы","Предмет ","ФИО автора работы","Класс ","Руководитель ","работа","оплата"]
[1,"МОУ\"Новохоперская гимназия №1\"","Научно-исследовательская работа","Физика на кухне","Физика","Шувакина Юлия Александровна",null,"Авдеев Владимир Васильевич,учитель физики и математики"]
[2,"МБОУ «Гимназия №2» имени Баки Урманче  г Нижнекамск   ","Физика","По стопам изобретений Тесла","физика","Хабибуллин Аяз Айратович",10,"Фаляхова Гульзида Хикамутдиновна"]
[3,"«Актанышская средняя общеобразовательная школа №1» Актанышского муниципального района РТ\n"," физика\n\n","Сравнение действий переменного и постоянного токов\nэнергетической установки\n","физика","Габдуллина Алия Раиловна и Фатхелбаянов Артур Альбертович",8,"Ямалов Филарис Фанисович "]
[4,"МБОУ гимназия №33 г. Ульяновск","Физика","Влияние спектра светодиодного излучения на рост растений ","Физика","Головина Полина Сергеевна","11 класс","Горбенко Светлана Сергеевна,Морозова Юлия Вячеславовна"]
[5,"МБОУ \"Средняя обшеобразовательная школа  №24\"с углубленным изучением отдельных предметов Приволжского района г.Казани","Секция№3 \"Физика, математика, химия, информатика\"","Молекулярная физика и термодинамика в прикладных аспектах(нанотехнологии)","физика","Сираева Газаль Альбертовна","11 класс","Абдуллина Милауша Хикамутдиновна, учитель физики высшей квалификационной категории"]
[6,{"$nulls":4},"Гисматуллина Алина Данильевна","10класс"]
[7,"МАОУ \"Лицей № 6 г.Благовещенска\"","физика","Наши глаза в космосе","физика","Синауридзе Николай Иванович",5,"Офицеренко Светлана Валентиновна, заместитель директора по ВР"]
[8,"МБОУ \"Средняя школа № 8\" г.Елабуга","                        Секция №3  «Физика, математика, химия, информатика»","Физика в моих детских игрушках","Физика","Мазняк Руслан Сергеевич","7 \"А\" класс","Фунт И.П.  Мазняк Л.И."]
[9," «Зюринская средняя  общеобразовательная школа»","физика","Физика и лыжный спорт","физика","Фролова Альбина","9 класс","Гаврилова Марина Николаевна"]
[10,"МБОУ \"Заинская средняя общеобразовательная школа № 6\"","физика","Физические явления в художественных произведения русских поэтов","физика","Ласточкин Кирилл Александрович",7,"Ласточкина Марина Александровна"]
[11,"МБОУ \"СОШ№112\"","Секция №3 \"Физика, математика, химия, информатика\"","Взаимодействие хитозана с анионным ПАВ природного происхождения в водных средах","Химия","Силахина Александра Валерьевна","9Б","1. Миргалеева Наталья Владимировна, учитель химии высшей квалификационной категории, МБОУ \"СОШ№112\" 2. Шилова Светлана Владимировна, профессор кафедры физической и коллоидной химии, Казанский национальный исследовательский технологический университет"]
[null,null,"Физика","Исследование тритиевой бетавольтаической батареи на основе фотоэлектрической панели","Физика","Сильвестров Даниил Степанович",10,"Имамов Ильдар Фаизович, учитель физики высшей квалификационной категории МБОУ «Лицей №177»; Сидоров Александр Вячеславович, к.б.н. учитель химии высшей квалификационной категории МБОУ «Лицей №177»"]
{"$rows_empty":86}
[{"$f":"COUNT(A1:A99)","v":11}]

{"sheet":"Химия","index":3,"n_rows":92,"n_cols":10,"rows_kept":92}
[null,"Наименование\nОУ\n","Направление конкурсной работы","Название работы","Предмет ","ФИО автора работы","Класс ","Руководитель ","работа","оплата"]
[1,"Муниципальное бюджетное общеобразовательное учреждение гимназия № 33 г. Ульяновск","Химия","\"Миф или реальность\"","Химия","Шарова Вероника Витальевна","5 \"В\"","Сергиевская Христина Андреевна Учитель английского языка"]
[2," Ромодановская средняя общеобразовательная школа","Экология, химия, биология","Судьба родного края – в моих руках.","экология","Золотова Варвара Викторовна",10,"Локтева Анна Павловна   учитель математики    "]
[3,"МАУ ДО \"Центр детского технического творчества №5\"","Экология","Волновой генератор","Экология","Вознюк Людмила Леонидовна",6,"Асадова Галина Ильинична, педагог дополнительного образования"]
[4,"Муниципальное автономное общеобразовательное учреждение \"Гимназия №76\"","экология","Влияние фитонцидов растений на микроорганизмы","биология","Шайдуллина Аделя Рустемовна","9Б","Ахметова Елена Николаевна"]
[5,"Лицей-интернат для одаренных детей с углубленным изучением химии - филиал ФГБОУ ВО «КНИТУ» в п. Дубровка Республики Татарстан","Химия, экология, биология","Химико-математическое исследование влияния подкормки на количественный и качественный выход картофеля\n\n","Химия, математика","Васильев Данил Михайлович",10,"Франова Евгения Владимировна, Каландинская Ирина Александровна"]
[6,"МАОУ \"СОШ№2\" г.Нурлат РТ","секция №1 \"Окружающий мир,здоровье, экология\"","Организация динамических подвижных перемен и их влияние на здоровье учащихся МАОУ «СОШ №2» г. Нурлат","физическая культура","Имукова Ангелина Владимировна, Хамидуллина Амина Рафаэлевна",8,"Галлямов Эмиль Фаргатович"]
[7,"МБОУ \"СОШ №10\" НМР РТ","Химия, биология, экология","Переработка пластика для вторичного использования","Экология","Граханцева Дарья Александровна",8,"Никоноров Леонид Николаевич"]
[8,"МБОУ \"Олуязский лицей\"","Химия","Синтез наночастиц селенида кадмия, изучение свойств и областей применения","Химия","Хабибрахманова Айгуль Рифатовна","10  класс","Хасанов Хатим Гилемханович-учитель химии"]
[9,"МБОУ \"Средняя общеобразовательная русско-татарская школа №67\" Кировского района г.Казани","Химия, биология, экология","Интересные свойства жидкостей","химия","Самохин Константин Алексеевич",9,"Миннуллин Раиль Радикович"]
[10,"МБОУ \"Коморгузинская сош имени Шигабутдина Марджани\" Атнинский  район ","Химия, биология, экология","Кулланылган батарейкаларның табигатькә һәм кеше сәламәтлегенә йогынтысы","География","Гилязутдинов Радил Радимович",8,"Миннебаев Рафиль Хурматуллович"]
[11,"Муниципальное бюджетное общеобразовательное учреждение гимназия \"Эврика\"","Химия, биология, экология","Исследование формирования рельефа земной поверхности под влиянием воды и течения рек\n\n","экология","Филимонов Никита Владимирович","10 класс","Филимонова Наталья Викторовна, учитель"]
[12,"МАОУ \"Гимназия №76\""," Химия","Эфирные масла","Химия","Каримова Камилла Рамилевна","9 В","Садыкова Фануза Халитовна учитель химии МАОУ «Гимназия №76»"]
[13,"МБОУ \"Старошешминская средняя общеобразовательная школа\" Нижнекамский муниципальный район РТ, МБУ ДО \n«Детский эколого-биологический центр» \n","Химия, биология, экология","Изучение видового состава и численности дневных хищных птиц в\n окрестностях  Старошешминского сельского поселения\n","Биология","Матюшенцев Илья Иванович",8,"Баранова Наталья Ивановна"]
[14,"МБОУ \"Лицей №1 ЗМР РТ\"","Химия, биология, экология ","Определение кислотности почвы","биология","Калиндеева Евгения Максимовна",5,"Вафина Алсу Низамовна"]
[15,"МБОУ «Средняя общеобразовательная школа №31 с углубленным изучением отдельных предметов» Нижнекамского муниципального района РТ","Окружающий мир, здоровье экология","Бытовые отходы: экологические проблемы и возможные пути их решения.","Экология","Габдуллина Алина Ильфаковна","8 А","Габдуллина Гузалия Мубаракзяновна Фокеева  Елизавета Павловна"]
[16,"Муниципальное бюджетное общеобразовательное учреждение \"Красногорская СОШ\"","экология","\"Coca-Cola\"-польза или вред?","биология","Исекеева Милена, Костина Елизавета","7 класс","Нурмиева Галина Александровна"]
[17,"МБОУ гимназия №33 г. Ульяновск","Экология, биология","Анализ способности природных веществ к очистке загрязненных поверхностей в естественных условиях.","Биология","Куляшина Ангелина Дмитриевна","11 класс","Морозова Юлия Вячеславовна методист, МБОУ гимназия № 33, г. Ульяновск\n\n\n\n"]
[18,"МБОУ гимназия №33 г. Ульяновск","Биология","Влияние ароматов на изменение вкусовых ощущений на примере простых углеводов","Биология","Арапова Анастасия Павловна","11 класс","Стучилина Людмила Владимировна, Морозова Юлия Вячеславовна"]
[19,"МБОУ \"Средняя общеобразовательная русско-татарская школа №67\" Кировского района г.Казани","Химия, биология, экология","О вреде и пользе 33-го элемента","экология","Яббаров Азат Ленарович",9,"Миннуллин Раиль Радикович"]
[20,"«Лицей №2 им. ак. К.А. Валиева г. Мамадыш» Мамадышского  района Республики Татарстан,"," Химия, биология, экология","Орнитофауна города Мамадыш республики Татарстан","биология","Шайхутдинова Алсу","6А","Соловьева Екатерина Алексеевна,"]
[21,"Муниципальное автономное общеобразовательное учреждение города Набережные Челны «Гимназия №76». ","биология","Наблюдение над процессом выведения индоуток в инкубаторе и естественным путем. Сравнение полученных результатов","биология","ТУКТАРОВА Алина Радиковна","5 в","Садыкова Ф.Х."]
[22,"Муниципальное бюджетное общеобразовательное учреждение \"Средняяобщеобразовательная школа №44\"","Химия, биология, экология","Муравьи Lasius niger и Messor structor как домашние животные","биология","Вяткина Светлана Алексеевна","9А","Хромова Оксана Сергеевна"]
[23,"Муниципальное бюджетное общеобразовательное учреждение гимназия \"Эврика\"","Химия, биология, экология","Влияние цвета освещения на вес и яйценоскость перепелки","химия","Сероштанова Валерия ","5 класс","Филимонова Наталья Викторовна, учитель"]
[24,"МБОУ гимназия №33 г. Ульяновск","Биология","Бактерии на страже здоровья","Биология","Шестакова Полина Андреевна     Лукашин Никита Андреевич","5 класс","Стучилина Людмила Владимировна, Морозова Юлия Вячеславовна"]
[25,"Общеобразовательная школа-интернат \"Лицей имени Н.И. Лобачевского\" \"Казанский (Приволжский) федеральный университет","Химия, биология, экология","Влияние градообразующих предприятий на здоровье населения Республики Татарстан ","Экология","Ахтямова Зиля Ильдаровна",9,"Сибгатуллина Гульназ Юнусовна,"]
[26,"МАОУ \"Лицей № 6 г.Благовещенска\"","химия , биология, экология","Планета в мусорном пакете","экология","Елисеев Никита Сергеевич",5,"Офицеренко Светлана Валентиновна,"]
[27,"МБОУ \"Малосуньская ООШ\"","Химия, биология, экология.","Техногенная рана Земли","Биология","Зиганшина Зиляра Ал-мазовна","8","Мухаметзянов Рустем Фазылзянович, учитель биологии, I категории"]
[28,"МБОУ \"Средняя общеобразовательная русско-татарская школа №67\" Кировского района г.Казани","Химия, биология, экология","Анализ воды прибрежных, поверхностных вод внутренних морей Атлантического океана ","химия","Яковлева Ассоль Андреевна",10,"Миннуллин Раиль Радикович"]
[29,"МБОУ \"Большешиинская СОШ\"","Химия, биология, экология","Большешиинский пруд: вчера, сегодня, завтра.","Экология","Асапова Валерия Альбертовна",6,"Асапова Валентина Геннадьевна"]
[30,"МБОУ \"Большешиинская СОШ\"","Химия, биология, экология","Бобры- природные строители.","Биология","Баймурзина Валерия Вадимовна",5,"Асапова Валентина Геннадьевна"]
[31,"МБОУ \"Большешиинская СОШ\"","Химия, биология, экология","Ондатры- пушные звери","Биология","Петров Кирил",5,"Асапова Валентина Геннадьевна"]
[32,"МБОУ \"Куюк-Ерыксинская СОШ\"","Химия,биология,экология","Нефть в медицине.Как она лечит?"," Химия, биология, экология","Зиннурова Диляра Ильдаровна",8,"Галиев Рушан Рамазанович,педагог дополнительного образования"]
[33,"«Зюринская средняя  общеобразовательная школа»","Химия, биология, экология","Төрле исләрнең кеше организмына йогынтысы.","Биология","Яковлев Вадим Ильич","7 класс","Герасимова Галина Петровна"]
[34,"МБОУ \"Омарская СОШ\"","Экология","\"Значение бобров для малых рек\"","экология","Чумакова Анастасия Николаевна, Тихонова Надежда Сергеевна",10,"Мачурина Надежда Григорьевна"]
[35,"МАОУ \"Гимназия №61\" г.Набережные Челны","экология","ИССЛЕДОВАНИЕ ЗАГРЯЗНЕННОСТИ СНЕГА  \nС ПОМОЩЬЮ КРЕСС-САЛАТА\n\n","география","Нуретдинова Эмилия","5  класс","Степанова Е.В."]
[36,"МАОУ \"Гимназия №61\" г.Набережные Челны","экология","Загрязнение атмосферы автомобильным транспортом в районе МАОУ «Гимназия №61»\n","география","Дудниченко Алёна","5  класс","Степанова Е.В."]
[37,"МБОУ \"Малокирменская ООШ\"","биология-экология","Кеше эшчәнлеге нәтиҗәсендә үзгәреш кичергән Кирмән елгасы бассейнының экологик хәле.","Экология","Мухаметзянов Ильмир Фанисович",8,"Гимазова Фирдания Хасбатулловна"]
[38,"МБОУ “Зюринская СОШ”","Исследовательская ","«Укучының өлгерешенә йорт хайваннары ничек тәэсир итә?».","Биология ","Мансурова Наталья Валерьевна",7,"Мансурова Анастасия Степановна"]
[39,"МБОУ \"Шадчинская СОШ\" Мамадышского муниципального района РТ","Экология","\"Экологическое состояние наших родников\"","биология","Николаева Юлия Николаевна",10,"Шрыкова Гюзель Ильдусовна учитель биологии"]
[40,"МБОУ \"Гимназия №22\" Нижнекамского муниципального района","Химия, биология, экология","Лесовозобновление и тенденции развития зеленомошно-разнотравных сосняков восточного Закамья, отличающихся разным уровнем антропогенного воздействия","Экология","Ломова Яна Олеговна",10,"Кутнеева Елена Николаевна"]
[41,"МБОУ \"СОШ№112\"","Секция №3 \"Физика, математика, химия, информатика\"","Взаимодействие хитозана с анионным ПАВ природного происхождения в водных средах","Химия","Силахина Александра Валерьевна","9Б"]
[42,"Казань Лицей №177","Химия, биология, экология","  «Получение пищевого красителя \nиз непищевого растительного сырья и отходов»\n","Биология ","Дубков Радгамир Владимирович",8,"Сергеева С.В., заместитель директора по инновационной работе учитель биологии высшей  квалификационной категории      "]
[43,"Казань Лицей №177","Химия, биология, экология","«Здоровье - главная жизненная ценность»","Биология ","Очерцова Камила Владимировна",8,"Сергеева С.В., заместитель директора по инновационной работе учитель биологии высшей  квалификационной категории   "]
[44,"МБОУ «Средняя общеобразовательная школа №88» Приволжского района г. Казани","химия,биология","Допинг в спорте и жизни","физическая культура","Бахарев Максим Владиславович",10,"Иванов Виталий Николаевич, учитель физической культуры I категории"]
[46,"Муниципальное бюджетное общеобразовательное учреждение \"Средняя общеобразовательная школа №41 города Набережные Челны\"","экология","Колония серых цапель на берегу реки Вятка","экология","Кузнецова Нина Александровна","6г","Кузнецова Ольга Владимировна"]
{"$rows_empty":45}
[{"$f":"COUNT(A1:A91)","v":45}]

{"sheet":"труд ","index":4,"n_rows":44,"n_cols":10,"rows_kept":44}
[null,"Наименование\nОУ\n","Направление конкурсной работы","Название работы","Предмет ","ФИО автора работы","Класс ","Руководитель ","работа","оплата"]
[1,"МАОУ \"Средняя общеобразовательная школа №15\" г.Набережные Челны,  РТ","Созидательный труд школьников","Исследовательская работа \"Настольные игры для развития логического мышления\"","Технология","Руденко Кирилл Артурович","7А","Зиятдинов Разиф Мухаметович, "]
[2,"МАОУ \"Гимназия №76\" г. Набережные Челны ","Созидательный труд школьников","Создание коллекции платьев в стиле 50-х годов \"Эпоха элегантности\"","Технология","Анисимова Надежда Сергеевна","9 \"Б\"","Фахреева Елизавета Сергеевна, учитель технологии"]
[3,"МБОУ \"СОШ №31\" НМР РТ","Созидательный труд школьников","Бизиборд в добрые руки!","Технология","Мурадымова Зарина Рифкатевна, Хусаинов Айрат Маратович",6,"Бадгиева Эльза Даниязовна, учитель, высшая кв.категория"]
[4,"МБОУ \"СОШ № 26\"","Созидательный труд школьников","Разработка фирменного стиля гостиницы «Кама» г. Нижнекамск","технология","Харисов Руслан Александрович",9,"Чулкова Татьяна Николаевна"]
[5,"МБУ ДО «ДТДиМ им.И.Х.Садыкова» НМР РТ","Созидательный труд школьников","На старт, школьный «ЭКО-отряд»!","Экология","Давыдова Анастасия Андреевна, Шавалиев Рамазан Мидхатович",6,"Бадгиева Эльза Даниязовна, педагог доп.образования, высшая кв.категория"]
[6,"МАОУ \"Гимназия №37\"","Созидательный труд школьников","Шелковые цветы ","Технология","Халитова Аделя Ильнуровна",8,"Серова Елена Александровна, учитель технологии"]
[7," \"Старошешминская средняя общеобразовательная школа\" Нижнекамского  района Республики Татарстан",null,"Конструирование детского экскаватора.",null,"Сухарев Егор Игоревич",11,"Айзаря Занифовна Ахметова"]
[8,"МБОУ \"СОШ № 3 г.Мамадыш\"","\"Созидательный труд школьников\"","Стилизация однжды для современной девушки","технология ","Мавзютова Адиля Робертовна","7 А","Чернышова Елена Александровна"]
[9,"МБОУ \"Шадчинская СОШ\""," Созидательный труд школьников","Прялка","технология","Илларионов Иван Викторович",8,"Хайдарова Гульнара Раифовна    учитель технологии,библиотекарь"]
[10,"ОУ Мамадышского района-Школа №1","Созидательный труд школьников","\"Декоративная кукла\"","Технология","Нигматиллина Гульшат Алнуровна",9,"Мухаметшина Татьяна Юрьевна-учитель технологии"]
[11,"МБОУ \"Омарская СОШ\"","Созидательный труд школьников","\"Комнатные растения в интеръере дома\"","технология","Багликова Анастасия Юрьевна",5,"Кочнева Ирина Владимировна"]
[12,"МБОУ \"Многопрофильный лицей им. А.М. Булатова п.г.т. Кукмор\"","Созидательный труд школьников","Использование люневильской вышивки при создании коллекции одежды прет-а-порте","Технология ","Шакирова Камиля Илдаровна",9,"Галиева Наталья Александровна, учитель технологии высшей категории"]
[13,"Инженерный лицей-интернат КНИТУ-КАИ","Созидательный труд школьников","\"KeyLigth\" - система система автоматического отключения электроэнергии в помещении","Технология","Утеев Вадим Денисович",10,"Быков Сергей Вадимович"]
[14,"МБОУ \"Дюсьметьевская СОШ\"",{"$nulls":3},"Семенов Радислав",null,"Ахмадеева З.В."]
[]
[15]
[16,"МАУ ДО ДХШ №1 , МАОУ \"Гимназия №76\" г. Набережные Челны","Созидательный труд школьников","Использование техники свободной росписи по ткани \nв создании уникальных текстильных изделий\n","технология, искусство","Суфиярова Алина Салаватовна"," 5 \"А\"","Бегунова Любовь Евгеньевна, преподаватель, высшая квалификационная категория"]
{"$rows_empty":25}
[{"$f":"COUNT(A1:A43)","v":16}]

{"sheet":"английский","index":5,"n_rows":60,"n_cols":10,"rows_kept":60}
[null,"Наименование\nОУ\n","Направление конкурсной работы","Название работы","Предмет ","ФИО автора работы","Класс ","Руководитель ","работа","оплата"]
[1,"МБОУ \"Дюсьметьевская СОШ\" Мамадышского муниципального района","Исследовательская деятельность","Сравнительная характеристика национального характера татар и англичан ","Английский язык","Салихова Инзиля Ралифовна",10,"Галимова Зарина Расиховна"]
[2,"МБОУ \"Гимназия №32\" НМР РТ","Загадки английского  языка","\"Ольфакторный автограф\" Англии и России","Английский язык","Замалиева Регина Рамилевна",9,"Иванова Альбина Николаевна"]
[3,"МБОУ \"Средняя общеобразовательная школа №3 города Мамадыш\" Мамадышского муниципального района","английский язык","Английский в кармане: как выучить язык при помощи смартфона","английский язык","Набиуллин Руслан, Сомов Руслан",7,"Валиева Р.З., Хасанова Э.Ш."]
[4,"МАОУ \"Гимназия №76\" Набережные Челны ","Загадки английского языка","О чем \"говорят\" английские надписи на школьных принадлежностях","английский язык","Мухаметшина Камилла Ильдаровна","5А","Кондылева Марина Сергеевна"]
[5,"Муниципальное бюджетное общеобразовательное учреждение города Ульяновска «Средняя школа №21»","загадки английского языка","Тайны английских идиом","английский язык","Александрова Диана, Надежда Ригунова",8,"Савельева Любовь Александровна,"]
[6,"Муниципальное бюджетное общеобразовательное учреждение города Ульяновска «Средняя школа №21»","загадки английского языка","Изучение историй происхождения английских детских стихотворений","английский язык","Тимошенко Александр","5В","Савельева Любовь Александровна,"]
[7,"МБОУ Средняя общеобразовательная школа № 167 с углубленным изучением отдельных предметов Советского района г. Казани","Загадки английского  языка","Изучение французских и немецких заимствований в английском языке как способ изучения второго иностранного","Английский язык","Жулий Алина Денисовна",10,"Таимов Камиль Назимович"]
[8,"Муниципальное бюджетное общеобразовательное учреждение «Средняя общеобразовательная школа №1 им. М.К.Тагирова»","Загадки английского язык","Особенности перевода романов «Гарри Поттер»","Английский язык","Фархутдинова Энже Ильсуровна ",10,"Галялетдинова Алсу Нурулловна,"]
[9,"МБОУ «Гимназия №32»","Загадки английского  языка","Посткроссинг как средство межкультурной коммуникации","Английский язык","Бурнаева Элина Олеговна","10А","Исангильдина Аида Рафиковна\n\n"]
[10,"МБОУ \"Гимназия № 21\" г. Казань","Загадки английского языка","Устное народное творчество различных культур: сравнительно-исторический анализ (русский, татарский, английский и латинский языки) на примере пословиц.","Английский язык","Кузина Светлана Вадимовна","9б","Сафина Гульнара Мансуровна, учитель английского языка высшей категории"]
[11,"МБОУ \"Верхнеошминская ООШ\" Мамадышского муниципального района","Загадки английского языка","«Роль красного цвета в жизни англичан и в истории Англии»","Английский язык","Исмагилова Зухра Раилевна",6,"Исмагилов Раиль Камилевич"]
[12,"МБОУ \"Малокирменская ООШ\"","Загадки английского языка"," Англицизмы в речи подростков.","Английский язык","Мухарлямов Адель, Максимова Лейсан",9,"Фархуллина Зульфия Тахиятулловна"]
[13,"МБОУ \"СОШ №41\" г.Наб.Челны ","Загадки английского языка","\"Английские и татарские приметы и суеверия: сходства и различия\"","английский язык","Сальманова Аделина Ильнуровна, Хасаншина Эльвина Ирековна","7 Б","Матросова Светлана Фаритовна,           учитель английского языка"]
[14,"МБОУ \"Лицей №2 имени ак К.Валиева г. Мамадыш\"","Загадки английского языка","Разнообразие и специфические особенности английского лимерика, русских и татарских частушек","английский язык","Залилова Адиля, Чурекеев Нияз","10 Б","Гиззатуллина З.Ф., Залилова А.Ш."]
[15,"МБОУ \"Шадчинская СОШ\" Мамадышского муниципального района РТ","Загадки английского языка","English language is my dream","Английский язык","Садыков Ильназ Айдарович",5,"Салимова Гульчачак Фаизовна, учитель английского языка"]
[16,"МБОУ \"Зверосовхозская СОШ\" Мамадышского муниципального района РТ","Загадки английского  языка","Метафора в англоязычном рекламном тексте","английский язык","Хабибуллина Диляра Ринатовна",11,"Габдрахманова Гульфия Нургалиевна, учитель английского языка"]
[17,"МБОУ «Лицей №2 им. ак. К.А. Валиева г. Мамадыш»","Загадки английского языка","Russian borrowings in English","Английский язык","Кузьмина Екатерина Сергеевна","7б","Ермолаева Регина Геннадьевна, Шайхутдинова Руфия Робертовна"]
[18,"МБОУ Средняя общеобразовательная школа № 167 с углубленным изучением отдельных предметов Советского района г. Казани","Загадки английского  языка","Озвучивание кино и видео, как дополнительный способ изучения иностранного языка на уроках и кружках с использованием цифровых программ","Английский язык","Минзянова Диана Фаридовна",10,"Таимов Камиль Назимович  Юсупова Алсу Альбертовна "]
[19,"МБОУ\"Гимназия №1\" имени Мусы Джалиля","Загадки английского языка ","SMS-сообщение в современном мире","Английский язык","Шафигуллина Диана Маратовна",10,"Гиздатуллина Эльмира Мирзагитовна, учитель английского языка"]
[20,"МАОУ \"Гимназия №61\" г.Набережные Челны","Загадки английского языка","Латинские заимствования в английском языке","Загадки английского языка  ","Бурмистрова Юлия, Марданова Камилла ","5 класс","Нуриева Эльза Гаязовна"]
[21,"МБОУ \"Нижнеошминская СОШ\"","английские загадки","Классификация структуры английских загадок","английский язык","Игумнова Аделя Владимировна",6,"учитель английского языка Салимова Рамзия Талгатовна"]
[22,"МБОУ \"СОШ № 41\"","загадки английского языка","Отражение национального характера через призму английских и русских пословиц и поговорок","английский","Гумеров Данияр Рустемович","4 Б","Максимова Юлия Олеговна, учитель английского языка, 1 категории"]
[23,"Муниципальное бюджетное общеобразовательное учреждение \"Средняя общеобразовательная школа № 41","Загадки английского языка",null,null,"Самано-Перез Алисия Хосе Луисовна","4Д","Бербасова Анастасия Михайловна, учитель английского языка"]
[24,"МБОУ \"Средняя общеобразовательная русско-татарская школа №67\" Кировского района г.Казани","Химия, биология, экология","Анализ воды прибрежных, поверхностных вод внутренних морей Атлантического океана ","химия","Яковлева Ассоль Андреевна",10,"Миннуллин Раиль Радикович"]
{"$rows_empty":34}
[{"$f":"COUNT(A1:A59)","v":24}]

{"sheet":"Русский ","index":6,"n_rows":49,"n_cols":10,"rows_kept":49}
[null,"Наименование\nОУ\n","Направление конкурсной работы","Название работы","Предмет ","ФИО автора работы","Класс ","Руководитель ","работа","оплата"]
[1,"МБОУ \"Кляушская СОШ\" Мамадышского района РТ","Русский язык и литература","Мораль басни такова","Русский язык","Галимуллина Илюза Ильшатовна",6,"Хакимова Айслу Рустамовна, учитель русского языка и литерауры"]
[2,"МБОУ \"Среднекирменская СОШ\" Мамадышского муниципального района РТ","Русский язык и литература","Историческая тема в произведениях А.С.Пушкина","Литература"," Гимазова Лилия Фанилевна"," 11 класс","Марданова А.Ш.учитель русского языка и литературы"]
[3," «Средняя общеобразовательная школа №4» г.Альметьевска Республики Татарстан"," Русский язык и литература","Балда: прошлое, настоящее, сказочное… (тайна слова)","русский язык","Шайхулова Регина Фаизовна",10,"Дмитриева Рузалия Талгатовна, "]
[4," «Средняя общеобразовательная школа №4» г.Альметьевска Республики Татарстан","Русский язык и литература","Знакомые «незнакомцы»?\n (Семантика слова банить в словаре В.И. Даля и за его пределами)","Русский язык","Хасаншин \nАзат Нафисович",10,"Дмитриева Рузалия Талгатовна, "]
[5," «Средняя общеобразовательная школа №4» г.Альметьевска Республики Татарстан","Русский язык и литература","Победа «так» над «не так» в сказках К.И. Чуковского \n(Образы героев сказок)\n","Русская литература","Хайретдинова Аделя Фирдависовна","5А","Дмитриева Рузалия Талгатовна, "]
[6,"МБОУ \"СОШ №31\" НМР РТ, МБУ ДО «ДТДиМ им.И.Х.Садыкова» НМР РТ","Русский язык и литература","Восточная притча, басня, стих – три различных способа передачи одной народной мудрости","Литература","Баширов Артур  Ильнарович, Мальцева Екатерина Семёновна",6,"Седова Ландыш Миннимухаматовна, Бадгиева Эльза Даниязовна, учитель, высшая кв.категория;  "]
[7,"МБОУ \"Гимназия №2 имени Б.Урманче\" г.Нижнекамска РТ","Русский язык и  литература","\"О чём говорят фантики\"",null,"Бадретдинова Диляра Айзатовна","6 класс","Шигапова Бария Халитовна"]
[8," «Старокаширская средняя общеобразовательная школа» Сармановского  района РТ","Секция №4 «Искусство, технология, русский язык  и литература»","«Нравственный аспект в повести  Виталия Закруткина «Матерь человеческая»","литература","Муртазина Язиля Равиловна",11,"Хусаенова Венера Рафизовна, учитель русского языка и литературы"]
[9,"МБОУ \"Кляушская СОШ\" Мамадышского района РТ","Русский язык и литература","Особенности Вятского говора. (На примере говора жителей деревни Гурьевка).","Русский язык","Герасимов Сергей Александрович",9,"Демьянова Валентина Николаевна, учитель русского языка и литерауры"]
[10,"МБОУ \"СОШ №46\" г.Набережные Челны","Русский язык и литература","Семья - это среда, где человек учится творить добро","Литература","Уткин Иван Олегович",9,"Хабетдинова Зумрат Даминовна, учитель русского языка и литературы высшей квалификационной категории"]
[11,"\"Средняя общеобразовательная школа  № 4 г. Мамадыш\" Мамадышского  района Республики Татарстан","Русский язык и литература","Место дуэлей в литеатуре","литература","Мичурина Юлия, Гайфутдинова Алия",11,"Шишкина И. М. "]
[12,"МБОУ \"СОШ № 41\" г. Набережные Челны","русский язык и литература","Образ Бабы Яги в русских народных сказках","литература","Шайхутдинова Диана Данияровна",6,"Пилипенко Наталья Викторовна,"]
[13,"МБОУ \"СОШ № 41\" г. Набережные Челны","русский язык и литература","Старославянизмы в сказках А.С. Пушкина","русский язык","Надинова Вилена Сергеевна",6,"Пилипенко Наталья Викторовна,"]
[14,"МБОУ \"Гимназия №2\" ЕМР РТ","Русский язык и литература","\"Растительный мир и его изображение в романе А.С.Пушкина  «Евгений Онегин» \"","Русская литература","Гребнева Ксения Викторовна",11,"Матанцева Луиза Рашидовна, "]
[15,"МБОУ \"Среднекирменская СОШ\""," Русский  язык и литература","Образы животных в сказках А.С.Пушкина","Литература"," Марданова Нурсина Рифатовна"," 6 класс","Марданова А.Ш.учитель русского языка и литеатуры"]
[16," \"Усалинская средняя общеобразовательная школа\" Мамадышского муниципального района РТ","Русский язык и литература","Они горели сами и освещали путь другим","Русский язык и литература","Шарифуллин Искандер Ниязович",10,"Фазылова Резеда Фатхрахмановна"]
[17,"МБОУ \"Среднекирменская СОШ\"","русский язык и литература","Фоносемантический анализ стихотворения А.С.Пушкина \"Няне\"\"","русский язык и литература","Искандарова Фируза Фирдиазовна",5,"Искандарова Гульназ Вакиповна"]
[18,"«Лицей №2 имени академика К.А.Валиева горда Мамадыш\" Мамадышского  района РТ","Секция №4 «Искусство, технология, русский язык  и литература»","«История чести и предательства в повести Н.Гоголя \"Тарас Бульба\" и в новелле П.Мериме \"Маттео Фальконе\"","литература","Бабаниязова Камилла Рузилевна",7,"Гурьянова Резеда Фазыловна, "]
[19,"МБОУ \"Зверосовхозская средняя общеобразовательная школа\" Мамадышского муниципального района Республики Татарстан","русский язык и литература","Энциклопедия одного слова","Русский язык","Ильина Екатерина Валерьевна",6,"Афанасьева Лариса Николаевна"]
[20,"«Зюринская средняя  общеобразовательная школа»","русский язык и литература","Природа - источник вдохновения ( по произведениям поэтов-земляков мамадышского края Ю.С.Аполоновой и В.И.Калашникова)","литература","Мансурова Наталья Валерьевна",7,"Хаффазова Мадина Тимергалиевна"]
[21,"МБОУ \"СОШ № 3 г. Мамадыш\"","русский язык и литература","Роль библиотек в формировании культуры чтения младшего школьника","русский язык и литература","Хасанова Алина Ильдаровна",11,"Сайфиева Резеда Миннегалиевна, "]
[22,"МБОУ \"Средняя общеобразовательная школа №31 с углубленным изучением отдельных предметов\" НМР РТ","Русский язык и литература","История родного края через судьбу татарской женщины в современной литературе ","Литература","Скоробогатова Кристина Сергеевна","10 А","Седова Ландыш Миннимухаматовна Ямщикова Раиса Юрьевна учитель "]
[23,"МБОУ \"Нижнеошминская СОШ\" Мамадышского муниципального района Республики Татарстан","русский язык и литература","Средства  художественной выразительности языка в повести  Лукмана Закирова «Мустафа»","Литература","Миннахметова Гузель Ринатовна",11,"Садриева Наиля Рамилевна, учитель русского языка и литературы"]
[24,"Казань Лицей №177","Русский язык и литература","Концепт \"женщина\" в русских и татарских пословицах","Русский язык"," Каюмова Алия Шамилевна, Жандармова Есения Александровна",10,"Гатауллина Разина Фархатовна, учитель родного языка и литературы"]
[25,"Лицей №2",{"$nulls":3},"Салахутдинова Алсу Маратовна  ",8,"Муртазина Ч.Р.","заявка ?"]
{"$rows_empty":22}
[{"$f":"COUNT(A1:A48)","v":25}]

{"sheet":"Математика","index":7,"n_rows":36,"n_cols":10,"rows_kept":36}
[null,"Наименование\nОУ\n","Направление конкурсной работы","Название работы","Предмет ","ФИО автора работы","Класс ","Руководитель ","работа","оплата"]
[1,"МБОУ \"Балтасинская гимназия\"","Математика","Проценты в бюджете моей семьи","Математика ","Исрафилова Алия Алмазовна",6,"Нуриева Альбина Ровертовна"]
[2,"МБОУ \"Гимназия №2\" ЕМР РТ","математика","Примитивные пифагоровы тройки","математика","Галиуллин Михаил Ришатович","8Б","Димиева Зимфира Тимерхановна"]
[3,"МБОУ \"СОШ №19\" г.Нижнекамск, РТ","Математика ","Математика и живопись","математика","Исмагилова Регина Ильнуровна","8в","Ахметова Резеда Ильдусовна,"]
[4,"МБОУ \"Школа № 175\"Советского района,города Казани","математика","\"Математика на службе у экологии\"","математика","Салихова Алсу Вячеславовна",7,"Мухаметгалимова Алия Радифовна"]
[5,"«Большекайбицкая средняя общеобразовательная школа Кайбицкого  района Республики Татарстан»","Математика","Умножение без таблицы умножения","Математика","Садыкова Аделия Рушановна",8,"Гарафутдинова Ляля Абдуллазяновна,учитель математики высшей квалификационной категории"]
[6,"МБОУ \"Чепчуговская СОШ Высокогорского муниципального района РТ\"","математика","Школьные инструменты для построения и измерения.Вчера. Сегодня. Завтра.","математика","Ахметшин Ильбар Маратович",6,"Блохина Елена Николаевна"]
[7,"\"Мелекесская средняя общеобразовательная школа с углубленным изучением отдельных предметов\"","Математика","Жесткая фигура - треугольник","Математика","Солдатова Вера Васильевна",7,"Солдатова Татьяна Павловна"]
[8,"МБУДО \"Городской дворец детского творчества им. А. Алиша\" г. Казани","Математика (Секция №3)","Разработка сайта \"Искусственный интеллект\"","Информатика","Галеев Амир Маратович",7,"Усачева Вера Ивановна, "]
[9,"МБОУ \"Чепчуговская СОШ Высокогорского муниципального района РТ\"","научно - исследовательсая работа ","Нестандартные приемы быстрого счета","математика","Фатхуллова Лилия Руслановна",5,"Фатыхова Елена Васильевна"]
[10,"МБОУ \"Средняя общеобразовательная школа №8\" Елабужского муниципального района","физика, математика, химия, информатика","Тругольник  Рёло ","математика","Назаров Владислав Сергеевич Сергеев Вадим Сергеевич",8,"Исакова Сирень Хикамутдиновна","бумажн"]
[11,"МБОУ \"Гимназия-интернат №13\" г.Нижнекамск","математика","Применение задач Л. Н. Толстого в математике ","математика","Посадская Алена Алексеевна","7А","Шигапова Миляуша Фоатовна"]
[12,"МБОУ \"Малокирменская ООШ\"","Математика","Методы решения уравнений высших степеней","Математика","Ханов Василий Юрьевич",9,"Зиннатуллина З.Х.,учитель математики"]
[13,"МБОУ \"Гимназия-интернат №13\"","математика","Изучение города Набережные Челны с помощью составления краеведческих математических задач","математика","Ахмадуллина Энже Айратовна","7 А","Габидуллина Резеда Шафиковна, учитель математики"]
[14,"МБОУ \"Лицей №2 им. ак. К.А.Валиева г. Мамадыш\"","математика","Проценты в нашей жизни","математика","Гайнуллин Айрат, Ярулллин Альберт","7 класс","Семенова А.А."]
[15,"МБОУ\"Нижнеошминская СОШ\""," математика","Секреты быстрого счета","Математика","Бегмурадова Малика Фарходовна",5,"Хузаянова Разиля Ильфатовна"]
[16,"МБОУ \"СОШ №8\"","Математика","Палиндромы","Математика","Разживина Ульяна Олеговна","10 А","Шурыгина Ирина Владимировна"]
[17,"МБОУ \"Гимназия №1\" имени Мусы Джалиля г. Нижнекамска РТ","Математика","Нуль - удивительное число","математика","Махиянов Муса Наилевич",7,"Хайруллина Гульнара Илсуровна"]
[18,"МБОУ \"Гимназия №2\" имени Баки Урманче\" г.Нижнекамска","математика","Связь математики с музыкой.","математика","Ахатова Фарида Ильдаровна",6,"Валиева Сирень Фардусовна"]
[19,"МБОУ \"Лицей №2 имени академика К.А.Валиева г.Мамадыш\"","математика","Оригами в математике","математика","Гатауллин Нияз",5,"Шакирова Лилия Фанилевна"]
[20,"Лицей №177 Казань","Математика","«Необычайная  лента Мёбиуса»","Математика","Сайфутдинов Айрат Рамилевич",8,"Сотникова И.А., учитель математики высшей квалификационной категории  "]
[21,"Лицей №177 Казань","Математика","\"Исследование окружностей Сальмона и точки Микеля с помощью программы GeoGebra\"","Математика","Самохина Маргарита Игоревна",10,"Фалилеева М.В., к.п.н., доцент; Манькова Елена Сергеевна, учитель математики высшей категории"]
[22,"Лицей №177 Казань","Математика","Исследование свойств функции y=(x^2+1)/x при различных видах параметризации с помощью программы GeoGebra ","Математика","Плотников Максим Дмитриевич",10,"Фалилеева М.В., к.п.н., доцент; Манькова Елена Сергеевна, учитель математики высшей категории"]
[23,"Муниципальное бюджетное общеобразовательное учреждение \"Верхнесуньская основная общеобразовательная школа\"","математика","Золотое сечение","математика","Назипова Дина Ильдаровна",6,"Мугтасимова Мунира Бариевна, учитель математики высшей квалификационной работы"]
[24,"МБОУ \"Лицей №2 им. ак. К.А.Валиева г. Мамадыш\"","математика","Уголковый отражатель","математика","Валеев Илья. Каримов Рамис, Хабибрахманов Ильяс","8 класс","Сайфутдинова Ф.Ф."]
[25,"МБОУ \"Лицей №2 им. ак. К.А.Валиева г. Мамадыш\"","математика","Искусство оригами в математике","математика","Латыпова Зарина,Фатыхова Алия","8 класс","Сайфутдинова Ф.Ф."]
[26,"МБОУ \"Лицей №2 им. ак. К.А.Валиева г. Мамадыш\"","математика","Математика здоровья","математика","Гаянова Карина,Нурмиева Алина","8 класс","Сайфутдинова Ф.Ф."]
[27,"Нижнекамск гимназия №2","математика","Загадочная криптография","математика","Низамутдинов Амин Шалфеева Виктория",5,"Хуснутдинова Г.Г."]
[28,"МБОУ \"СОШ №3 г. Мамадыш\"","Математика","Фигуры постоянной ширины","математика","Гайфулин Дамир Рафаэльевич",10,"Нугуманов Фанис Варисович "]
[]
[]
[]
[]
[]
[]
[{"$f":"COUNT(A1:A35)","v":28}]

{"sheet":"Татарский ","index":8,"n_rows":28,"n_cols":10,"rows_kept":28}
[null,"Наименование\nОУ\n","Направление конкурсной работы","Название работы","Предмет ","ФИО автора работы","Класс ","Руководитель ","работа","оплата"]
[1,"Мамадышский район,МБОУ “Верхнеякинская ООШ”","Родная литература","Әмирхан Еники әсәрләрендә ана һәм бала мөнәсәбәте","Родная литература","Хасанов Инсаф Разилевич",8,"Фахрутдинова Лилия Мавлеевна,"]
[2,"Гимназия №96","Татарский язык и литература","«Татар атлары»",null,"Хаерова Эндже Ильдаровна",10,"Мифтахутдинова Альфия Захраповна"]
[3,"Гимназия №96","Татарский язык и литература","Татар радиосы.\nҮткәне, бүгенгесе \nһәм киләчәге!\n",null,"Садретдинов Равиль Раилевич",9,"Мусина Венера Гильмутдиновна"]
[4,"Муниципальное общеобразовательное учреждение \"Лицей №149 с татарским языком обучения\"","Татарский язык и литература","И.Сәлаховның \"Колыма хикәяләре\" әсәрендә төрмә, шәхес иреген чикләү темасы","Татарская литертура","Хисматуллин Данис",9,"Сулайманова Хана Хайдаряновна         Калимуллина Разина Шайдуловна"]
[5,"МБОУ \"Сармановская гимназия\"","Татарский язык и литература","Татар телендә “яшь” төшенчәсенең вербальләшүе","Татарский язык и литература","Шайгаллямова Алсу Дамировна",5,"Матзянова Раушания Гаязовна  Салихова Алсу Нисбатовна "]
[6,"МБОУ \"Верхнеошминская ООШ\"","Татарский язык и литература","Рафаил Газизовның “Күрше кызы” китабында  балалар дөньясы бирелеше","татарская литература","Низамова Камиля Зиннуровна",7,"Мухарлямова Ленуза Гильмулловна"]
[7," \"Усалинская средняя общеобразовательная школа\" Мамадышского муниципального района РТ","татарский язык и литература ","Вахит Имамов әсәрләренең тел-стиль үзенчәлекләре","татарский язык и литература ","Хайбуллина Гульсу Фанилевна",8,"Хайбуллина Зубарджат Габделхаковна"]
[8,"МБОУ \"СОШ №4\"","татарский язык и литература ",null,"татарский язык и литература ","Ганиева Ралина Маратовна",9,"Шакирзянова"]
[9,"МБОУ \"Кляушская СОШ\" Мамадышского муниципального района РТ","•Татарский язык и литература ","Сарбаш  һәм Тугыз авылы микротопонимнарының\nаталу тарихларын      өйрәнү\n","Татарский язык","Зинатуллина Гузель Ринатовна",5,"Шакирова Ландыш Гильмутдиновна"]
[10,"МБОУ \"Среднекирменская СОШ\" Мамадышского района РТ","Татарский язык и литература (перевод) \n","“Татар матбугатына укучыларны ничек җәлеп итәргә?”","Татарский язык и литература","Абдуллин Ислам Ришатович",7,"Марданов Рифат Асгатович, учитель татарского языка и литературы"]
[11,"МБОУ \"Среднекирменская СОШ\"","Татарский язык и литература","\"Халык аваз иҗаты.Әкиятләр\"","Татар теле һәм әдәбияты","Хасанов Зөлфәт Булатович",5,"Хасанова Гөлназ Накиповна"]
[12,"МБОУ \"СОШ №3\"","Татарский язык и литература","С.Эхмэтжанованын \"Татар кызлары\" поэмасына анализ","татарская литература","Курбанова Г.Н.",10,"Накипова Р.Ф."]
[13,"МБОУ \"Нижнеякинская СОШ\"","Татарский язык и литература ","Авылым тарихы","Татарский язык и литература","Мухамадиева Дина Рафаилевна",5,"Сафина Миляуша Гилязетдиновна"]
{"$rows_empty":13}
[{"$f":"COUNT(A2:A27)","v":13}]

{"sheet":"Юный ","index":9,"n_rows":158,"n_cols":10,"rows_kept":158}
[null,"Наименование\nОУ\n","Направление конкурсной работы","Название работы","Предмет ","ФИО автора работы","Класс ","Руководитель ","работа","оплата"]
[1,"МБОУ СОШ №6 Бугульма","Юный исследователь","Вся правда о шоколаде","Окруж. Мир ","Кинсертдинов Фархат Ранисович",1,"Шарипова Ильгиза Ильясовна"]
[2,"МАОУ                       « Гимназия №76» г. Набережные Челны","Юный исследователь. Секция 3 «Физика, математика, химия, информатика»","Интересные превращения вокруг нас.","Химия","Салахова Амира Маратовна","2  А","Ахмедова Татьяна Леонидовна, учитель начальных классов"]
[3,"«Средняя общеобразовательная школа №36» Нижнекамского  района Республики Татарстан,","Юный исследователь: секция №4 искусство","Красиво в Татарстане жить - не запретить","искусство","Мубаракова Эмира Ринатовна","МБОУ \"СОШ №36\" г. Нижнекамск, 4А класс"," Нуриева А.С."]
[4,"«Гимназия №75» Московского района г.Казани","Юный исследователь (для учащихся начальных классов)","«Польза и целебные свойства варенья  из сосновых шишек»","Секция №1 «Окружающий мир, здоровье, экология»","Брызгалова Есения Ивановна","3д","Миронова Элина Викторовна"]
[5,"МБОУ \"Гимназия №2\" имени Баки Урманче","Юный исследователь \"Татарский язык и литература\"","Милләтем бизәкләре","татарский язык","Шарифуллин Данир Рафисович",1,"Гареева Ляйсан Рафисовна"]
[6,"Казань, гимназия №75","Секция №4 «Искусство, технология, русский язык  и литература»","Птица счастья в технике модульное оригами","Технология","Маслова Марфа Андреевна","2 Д","Бикбулатова Наида Фаридовна"]
[7,"МБОУ  \"Таканышская СОШ\"","Юный исследователь Секция№2 \"История краеведение\"","\"Сафья әбекәем васыяте\"","Внеурочная деятелҗность","Рахимова Амина, рахимова Самира","1класс, 3 класс","Ибрагимова Софья Николаевна"]
[8," Гимназия № 39 Ленинского района городского округа город Уфа Республики Башкортостан\n","Юный исследователь","Скульптурный облик современной Уфы","краеведение","Баязитов Тимур Ринатович","3\"Г\"","Халитова Лариса Наилевна"]
[9,"МБОУ \" Средняя общеобразовательная школа № 47\" Советского  района г.Казани","Экология","Голубые озера Татарстана. Сделай мир чище своими руками…","Экология","Гатин Адель Рустемович",4,"Ганатовская Светлана Павловна"]
[10,"МАОУ \"Гимназия № 76\" \nг. Набережные Челны","Юный исследователь","Вклад моей семьи в победу в ВОВ","История, краеведение","Шакуров Эмир",3,"Вильданова А.И."]
[11,"МАОУ \"Гимназия 76\"","Юный Исследователь","Волшебная сила творога. Есть ли она?","Окружающий мир","Микушина Амалия Евгеньевна","2Б","Костина Валентина Михайловна"]
[12," «Средняя общеобразовательная школа № 144 с углубленным изучением отдельных предметов» Советского района г. Казани","Юный исследователь (Секция №1 «Окружающий мир, здоровье, экология»)","Дикорастущие лекарственные растения северо-востока жилого массива «Вознесенское» г. Казани: \nгербарий и систематизация","Окружающий мир ","Кобзева Екатерина Евгеньевна","1 \"Г\"","Захватова Надежда Леонидовна"]
[13,"МАОУ \"Гимназия № 76\" г. Набережные Челны","Юный исследователь","Магия вращающихся объектов","Физика","Бикчурин Камиль Ринатович","4-а","Рабаданова Гульнара Магомедовна"]
[14,"МАОУ \"Гимназия № 76\" г. Набережные Челны","Связь музыки и математики","Магия вращающихся объектов","Искусство","Садыкова Лиана Виловна","4-а","Рабаданова Гульнара Магомедовна"]
[15,"МБОУ СОШ №6 г.Бугульма","Номинация \"Юный исследователь\"\n","\"Экология дома и здоровье человека\"","секция №1 \"Окружающий мир, здоровье, экология\"","Гарафутдинова Амина Фанисовна","2 \"А\"","Мустафина Расима Галимзяновна - учитель начальных классов"]
[16,"МБОУ \"Гимназия №1-Центр национального образования\" Елабужского муниципального района","Юный исследователь","Заветная мечта детей войны","история, краеведение","Фатыхов Булат Масгутович","4а","Мирзанурова Розалия Мукатдисовна Фатыхова Разина Мударисовна,"]
[17,"ГБООУ \"Болгарская санаторная школа-интернат\"","Юный исследователь(для учащихся начальных классов)","Исследовательская работа \"Сталинградская битва\"","Секция №2 \"История, краеведение\"","Бевская Алеся, Куценко Алёна",4,"Кобенячкина Ольга Александровна,  Бухалова Гильсиря Минтаировна,  Низамова Алсу Салимовна, "]
[18," \"Средняя общеобразовательная школа № 7\" г. Альметьевска, РТ","Окружающий мир, здоровье, экологи","Опасны ли шины от машины?","начальные классы","Фролов Кирилл Александрович",1,"Тимофеева Наталья Алеесеевна, учитель начальных классов"]
[19,"МБОУ «СОШ №1 г. Мамадыш»","“Юный исследователь”,Секция №5 “Татарский язык и литература”","“Каз файдасы”(акчалата түгел)","Татарский язык и литература","Зиннатуллина Замира Ришатовна",1,"Мингазова Альфия Наилевна,учитель татарского языка и литературы"]
[20,"МБОУ «СОШ № 72» г.Казань","«Юный исследователь. Секция №4»","«Современный этикет как форма эффективного общения учеников начальной школы»","Русский язык","Фагимова Ирма  Мансуровна","2 В","Семенова Светлана Владимировна"]
[21,"МБОУ «СОШ № 72» г.Казань","«Юный исследователь. Секция №4»","«Архаизмы как языковой феномен речи современного ученика начальной школы»»","«Искусство, технология, русский язык","Хабибул лина Альбина Ринатовна","2 В","Семенова Светлана Владимировна,"]
[22,"МБОУ \"Джалильская гимназия\"","Юный исследователь ","Пещеры. Сармановские рудники. Сталактиты и сталагмиты.","Окружающий мир ","Галимов Муса Ришатович","4 класс","Валеева Лилия Фатиховна, учитель начальных классов "]
[23,"Наб.Челны  МБОУ \"Гимназия №26\"","Юный исследователь ","Дорога в небо ","Окружающий мир, здоровье","Банникова Анна Андреевна","3-Б","Сергеева Эльвира Рафиковна "]
[24,"МАОУ \"Гимназия №76\" г. Набережные Челны","Юный исследователь","\"Уникальное свойство воды - память\"","Окружающий мир","Васянина Аделина Анваровна","2 \"А\"","Ахмедова Татьяна Леонидовна, учитель начальных классов"]
[25,"МАОУ «Гимназия №76»\nг. Набережные Челны","Юный исследователь ","\"Влияние внешних условий на рост и  развитие растений\"","Секция №1 «Окружающий мир, здоровье, экология»","Сергеева Арина Рамилевна","2 \"Г\"","Климина Маргарита Юрьевна"]
[26,"МБОУ Гимназия №1 г.Самара","Юный исследователь","Исследование физических свойств древесины.","Физика","Самсонов Егор Алексеевич","4 Г","Ананьева Светлана Юрьевна, учитель начальных классов "]
[27,"МБОУ «СОШ №22» - ЦО Советского района г. Казани","Юный исследователь (секция №3 «Физика, математика, химия, информатика»)","КАКОГО ЦВЕТА МЫЛЬНЫЕ ПУЗЫРИ?",null,"Газизова Лейла Альмировна","3Б","Мельникова Ирина Анатольевна"]
[28,"МАОУ \"Гимназия №76\" г.Набережные Челны","Юный исследователь","\"В чем феномен побед команды КАМАЗ-мастер\"","Окружающий мир","Асадуллин Тимур Дамирович",2,"Костина Валентина Михайловна, "]
[29,"МБОУ \"Симферопольская академическая гимназия\"","Секция 1 «Окружающий мир, здоровье, экология»","Проблемы нехватки пресной воды в Республике Крым. Пути решения","Экология","Кривошеев Александр Алексеевич","4-Г","Сидоренко Галина Ивановна"]
[30,"МБОУ \"Симферопольская академическая гимназия\"","Секция 1 «Окружающий мир, здоровье, экология»","Здоровье зубов - в наших руках!","Здоровье","Кривошеева Дарья Алексеевна","1-Б","Сеитасанова Зайде Ибрамовна,"]
[31,"МБОУ «Кляушская СОШ» Мамадышского муниципального района РТ","Юный исследователь, Секция №2 «История, краеведение»","Национальный праздник удмуртов «Гырон быдтон»","начальные классы","Алешников Владислав Денисович","3Б","Шахтина Ирина Исламовна"]
[32,"МАОУ \"Гиназия №76\"","Юный исследователь, Секция 1","Мороженое: польза или вред?","окружающий мир","Архипов Владислав Анатольевич",2,"Климина Маргарита Юрьевна,                                                                             учитель начальных классов "]
[33,"Муниципальное бюджетное общеобразовательное учреждение средняя общеобразовательная школа №58 г. Пензы.","·        Юный исследователь (для учащихся начальных классов)Секция №1 «Окружающий мир, здоровье, экология»","НОВОГОДНЯЯ  КРАСАВИЦА","Окружающий мир","Сбусин Владимир Алексеевич Соустина Виолетта Романовна","1 \"В\"","                                                                       Жаткина\n                                                                                            Виктория Николаевна,\n                                                                                                      учитель начальных классов\n"]
[34,"МАОУ \"Гимназия №76\" г.Набережные Челны","Секция №3  «Физика, математика, химия, информатика»","\"Что такое ферромагнитная жидкость ?\"","Физика","Коновалов Ярослав Алексеевич","2 Г","Климина Маргарита Юрьевна"]
[35,"Муниципальное бюджетное общеобразовательное учреждение «Кукморская средняя школа №3» Кукморского муниципального района Республики Татарстан","«Юный исследователь» Секция №3  «Физика, математика, химия, информатика»","«Как проявить интерес к решению математических задач?»",null,"Латипова Р.Р. Сулейманова А.И.","2, 3 класс","Латипова Лилия Фаизовна, Шафикова Гульназ Дамировна"]
[36,"Симферопольская академическая гимназия","Юный исследователь ","Фауна беспозвоночных Донузлава: состояние, проблемы и перспективы","Окружающий мир, здоровье, экология","Клиценко Елизавета Олеговна","2-А","Клиценко Олег Алексеевич, "]
[37,"Симферопольская академическая гимназия","Юный исследователь ","Разнокачественность семян и перспективы развития сельского хозяйства Крыма в новых условиях","Окружающий мир, здоровье, экология","Клиценко Полина Олеговна","2-А","Клиценко Олег Алексеевич, "]
[38,"\n(МБОУ СОШ №6)\nг.Бугульма\n","Юный исследователь (для учащихся начальных классов)","Найми \nсолнце \nна работу!","Физика","Насыров\n Амаль Робертович",2,"Мустафина Расима Галимзяновна,\nучитель\nначальных классов"]
[39,"МБОУ «Средняя общеобразовательная школа №22 с углубленным изучением отдельных предметов - Центр образования» Советского района        г. Казани","Юный исследователь","Щедрый дар природы","Окружающ.мир","Мартынова Кира Константиновна","3А класс","Чернышева Тамара Анатольевна, "]
[40,"МБОУ \"Сармановская гимназия\"","Юный исследователь. Секция №1 «Окружающий мир, здоровье, экология»","Влияние компьютерных игр на здоровье младших школьников","здоровье","Гиниятуллина Диля Раушановна","3А","Нафикова Алсу Ясировна, Галялиева Винера Николаевна, "]
[41,"МБОУ \"Сармановская гимназия\"","Юный исследователь. Секция №1 «Окружающий мир, здоровье, экология»","Выращивание лука на подоконнике","окружающий мир","Мухаметова Милена Ленаровна","3А","Нафикова Алсу Ясировна, учитель начальных классов; Галялиева Винера Николаевна, учитель химии"]
[42,"МАОУ \"Гимназия №76\" Набережные Челны ","юный исследователь","Мой прадед - герой","окружающий мир","Мухаметшина Самира Ильдаровна","4Б","Никифорова Ольга Анатольевна"]
[43,"МБОУ СОШ №6                 г. Бугульма","Юный исследователь Секция №4 \"Искусство, технология, русский язык и литература\"","Шишкин в жизни. Шишкин вокруг нас","Искус-ство","Ишков Алексей Константи-нович","2А","Мустафина Расима Галимзяновна учитель начальных классов"]
[44,"МБОУ СОШ № 6 Бугульма","Окружающий мир, здоровье, экология"," Догхантеры - санитары города или  отстающее звено эволюции.   Влияние бездомных собак на городскую жизнь.","Секция 1","Быстрова Анна Романовна",2,"Мустафина Р.Г. Учитель начальных классов"]
[45,"Атнинский муниципальный район МБОУ \"Коморгузинская сош имени Шигабутдина Мардңани\"","История икраеведение","Комыргуҗа авыл җирлеге гидронимнары ","География","Миннебаев Камил Рафилевич",4,"Миннебаев Рафиль Хурматуллович"]
[46,"МБОУ \"Абдрахмановская средняя общеобразовательная школа\" Альметьевского муниципального района РТ"," Юный исследователь","Родники моего села","«Окружающий мир, здоровье, экология»","Закиров Реналь Рафаэлевич","1 \"А\"","Янчурина Роза Флусовна"]
[47,"МАОУ \"Гимназия №76\" г. Набережные Челны","юный исследователь, секция \"Искусство\"","Что такое эстамп?","технология, искусство","СуфияроваСамина Салаватовна",1,"Верхотурова Наталья Анатольевна, учитель начальных классов, высшая квалификационная категория"]
[48," МБОУ \"ШОЛА №81\" Кировского района г. Казани"," Юный исследователь"," «Калфак – национальный татарский женский головной убор»  ","История, краеведение","Сулейманова Гузелия Ленаровна","2А","Гуссамова Лилия Фаязовна, учитель начальных классов"]
[49," \"Средняя общеобразовательная школа № 7\" г. Альметьевска, РТ","История, краеведение","Скифы – наши предки?!","История","Фролов Даниил Александрович",1,"Тимофеева Наталья Алеесеевна, учитель начальных классов"]
[50,"\"Средняя общеобразовательная школа №8\" Елабужского муниципального района Республики Татарстан","Юный исследователь. Татарский язык и литература","Сөембикә манарасы - ерак тарих истәлеге.","Литературное чтение","Сираев Ильяс Ильназович",2,"Рамазанова Тамара Каламдаровна"]
[51," \"Средняя общеобразовательная школа № 7\" г. Альметьевска, РТ","Окружающий мир, здоровье, экологиия","Роль велосипеда в жизни человека","начальные классы","Шаронов Матвей Александрович",1,"Тимофеева Наталья Алеесеевна, учитель начальных классов"]
[52,"МАОУ \"Гимназия № 76\"","Юный исследователь (\"Окружающий мир, здоровье, экология\")","\"Вкусная опасность\"","Окружающий мир","Сахбутдинова Рената Рамилевна","2 Г","Климина Маргарита Юрьевна,                                                  учитель начальных классов"]
[53,"МАОУ «Гимназия №76» г.Набережные Челны","Здоровье","\"Молочные зубы\"","Окружающий мир","Обанина Милана Сергеевна","2 В","Рыбушкина Лидия Борисовна"]
[54,"МБОУ «Гимназия № 26» г. Набережные Челны","Юный исследователь ","Судьба работников КамАЗа","Секция №2 «История, краеведение»","Марданшина Амила Айратовна",3,"Сергеева Эльвира Рафиковна"]
[55,"МБОУ  СОШ №6, г. Бугульма","Юный исследователь","Сохранение и популяризация объекта культурного наследия (Село Спасское Бугульминского муниципального района)","История и краеведение","Меньшаев Руслан Александрович","2А","Мустафина Расима Галимзяновна"]
[56,"cредняя общеобразовательная школа №4 Бугульминского муниципального района Республики Татарстан","Краеведение","Моё генеалогическое древо","Окружающий мир","Куликова Дарина Ивановна",1,"Шамсутдинова Гульназира Магсумовна"]
[57,"МБОУ Гимназия № 26","Юный исследователь ","Наполнители для кошачьего туалета","\"Окружающий мир, здоровье, экология\"","Сафаргалина Зарина Ленаровна",3,"Сергеева Эльвира Рафиковна учитель начальных классов"]
[58,"МБОУ \"СОШ №6 с УИОП\" г. Бугульма","Юный исследователь, секция №1 \"экология\"","Воздух вокруг нас","Экология","Мельников Тимур Константинович","1Г","Шарипова Ильгиза Ильясовна. Учитель начальных классов 1 категории."]
[59,"ГБОУ СОШ №2 \"ОЦ\" с.Кинель-Черкассы","Номинация: Юный исследователь (для начальных классов)","\"Секреты зубной пасты\"","Окружающий мир, здоровье, экология","Долгополова Варвара Дмитриевна","2 \"Б\"","Евдокимова Маргарита Владимировна"]
[60," \"Средняя общеобразовательная школа №7\" г. Альметьевска Ресрублики Татарстан","Юный исследователь    ","Отчего зависит цвет наших глаз","Окружающий мир","Сагатова Эльвина Рамисовна","3 класс","Сабаева Мария Александровна"]
[61,"МБОУ СОШ № 58, г. Пензы"," Юный исследователь ","Рука помощи, или почему каждый может стать добровольцем?","Окружающий мир","Щербакова Мария Витальевна",3,"Тишонкова Любовь Владимировна"]
[62,"Муниципальное автономное общеобразовательное учреждение города Набережные Челны \"Гимназия №76\"",null,"Лечение перелома с помощью аппарата Илизарова","Окружающий мир, здоровье,экология","Файзуллина Эвелина Рамилевна","2 Г","Климина М.Ю."]
[63,"МБОУ г. Ульяновска \"Средняя школа № 21\"","Направление окружающий мир Номинация\nЮный исследователь\nСекция №1 «Окружающий мир, здоровье, экология»\n\n","Роль пчёл в жизни человека","Окружающий мир","Качалов Лев Александрович","1 класс Г","Акимова Светлана Анатольевна учитель начальных классов"]
[64,"МБОУ «Заинская средняя общеобразовательная школа №6»","здоровье","Алоэ – зеленый доктор на сто лет","окружающий мир","Имамиева Альбина Равильевна",3,"Любавина Лариса Анатольевна, учитель начальных классов"]
[65,"МБОУ «Заинская средняя общеобразовательная школа №6» Заинского муниципального района РТ","Юнный исследователь","Самое любимое животное","окружающий мир","Путяшов Давид Алексеевич",1,"Александрова Елена Александровна учитель начальных классов"]
[66," «Средняя общеобразовательная школа №36» Нижнекамского муниципального района Республики Татарстан","Созидательный труд школьников ","Инновационная технология «Лэпбук» в системе\nпроектной деятельности школьников.\n",null,"Денисова Екатерина Сергеевна","3 Б","Мухарлямова \n                                                                                                 Миляуша Ильдусовна\nучитель начальных классов"]
[67,"МБОУ \"Средняя общеобразовательная школа №22 - Центр образования\" Советского района г.Казани ","Юный исследователь. Секция №4 \"Искусство, технология, русский язык и литература\"","Сказка - ложь, да в ней намёк…","Литературное чтение","Мухарова Камилла Азатовна","4В","Марьина Лилия Шаукатовна"]
[68,"МБОУ \"Сапмановская СОШ\"","Юный исследователь. Секция \"Окружающий мир, здоровье, экология\"","Волшебный чеснок","Окружающий мир","Сафина Руфина Ильнаровна",2,"Гатина Гульназ Рафисовна, учитель начальных классов"]
[69," «Школа №9 с углубленным изучением \nанглийского языка г.Казани \nНово-Савиновского района","окружающий мир, здоровье, экология","«Беспочвенное выращивание растений»","окружающий мир","Давлетшин Камиль Ленарович",3,"Хуснутдинова Динара Рамилевна, учитель начальных классов"]
[70,"МБОУ \"ГИМНАЗИЯ №75\"  г. Казани","Юный исследователь","Жизнь бабочки в городской квартире","Окружающий мир","Старцев Арсений Иванович","2А"," Преподаватель Павлова Ирина Михайловна"]
[71," МАОУ «Гимназия №76»","Юный исследователь","Кислоты и щёлочи в быту","Секция №1 «Окружающий мир, здоровье, экология»","Ямалиев Никита Романович","2В","Рук.: Рыбушкина Л.Б."]
[72,"Муниципальное бюджетное общеобразовательное учреждение лицей №2, г. Бугульма, РТ","Юный исследователь.","История одного подвига. Газинур Гафиатуллин - герой Советского Союза. "," История, краеведение","Панарин Ярослав Айратович, Чернышова Мария Владимировна","4 А","Дубровина Елена Васильевна, учитель начальных классов"]
[73,"Муниципальное бюджетное общеобразовательное учреждение лицей №2, г. Бугульма, РТ","Юный исследователь.","Такая важная щётка- зубная. Влияние зубной щетки на качество чистки зубов","«Окружающий мир, здоровье, экология»","Мальцева Ксения Максимовна","4 А","Дубровина Елена Васильевна, учитель начальных классов"]
[74,"МАОУ гимназия № 76, г. Набережные Челны","Юный исследователь Секция №1 «Окружающий мир, здоровье, экология»","Любят ли зубы сладкое?","Окружающий мир","Азизова Самира Ильгамовна","2 Б","Костина Валентина Михайловна,учитель начальных классов"]
[75,"МБОУ Гимназия №1 г.о. Самара","Юный исследователь","Искусство невербального общения и его практическая польза","Искусство","Петряшин Артемий Дмитриевич","3 Г","Ананьева Светлана. Юрьевна - учитель начальной школы"]
[76,"Гимназия № 26 г. Набережные Челны","Искусство и технология","Механические музыкальные инструменты","Искусство и технология","Есина Марина Сергеевна","3Б","Сергеева Э.Р., учитель начальных классов"]
[77,"МБОУ СОШ №6 Бугульминского муниципального района Республики Татарстан","Экология","Волшебное превращение стеклянных бутылок","Окружающий мир","Гильмутдинов Динар Ренатович",1,"Тарасова Светлана Ивановна, учитель начальных классов "]
[78,"МБОУ \"Никифоровская ООШ\"","Нач. классы \"Юный исследователь\"","Определение  твердости  горных пород с помощью подручных средств","Окружающий мир","Степанов Дмитрий  Сергеевич",2,"Степанова Нурия Фаридовна"]
[79,"МБОУ СОШ №6 г. Бугульма ","Юный исследователь, секция №4 \"Искусство, технология, русский язык и литератула\"","\"Ноты программируют нас\"","Искусство","Сергушев Матвей Андреевич","2 \"А\"","учитель Мустафина Расима Галимзяновна"]
[80,"МАОУ Гимназия № 76 г. Набережные Челны","Юный исследователь","«Влияние мобильного телефона на здоровье ребенка»","Окружающий мир, здоровье, экология","Ли Анастасия Дмитриевна","2В","Рыбушкина Лидия Борисовна"]
[81,"МБОУ \"Сармановская гимназия\"","Юный исследователь. Секция №5 «Татарский язык и литература»","Әкият герое Дию кем ул?","татарский язык и литература","Латипова Амина Илназовна","3А","Нафикова Алсу Ясировна, учитель начальных классов"]
[82,"МБОУ «Заинская средняя общеобразовательная школа №6»","здоровье","«Можно ли сварить в домашних условиях гипоаллергенное туалетное мыло для аллергичных людей?»","окружающий мир","Мельников Кирилл Иванович",3,"Хохлова Лариса Владимировна, учитель начальных классов"]
[83,"МБОУ \"Гимназия №2, им. М.Вахитова\"","Юный исследователь (для учащихся начальных классов)                        Секция №4 «Искусство, технология, русский язык  и литература»","Развивающая мягкая книжка - игрушка \"Назар\"","Технология","Якупова Самира Айратовна","4д","Сагитова Аниса Амировна, учитель начальных классов"]
[84,"Муниципальное автономное общеобразовательное учреждение \"Гимназия №76\"","Юный исследователь\n         Секция №1 «Окружающий мир, здоровье, экология»\n","Изучение особенностей жизнедеятельности африканских улиток Ахатин Фулика (Achatina fulica) в домашних условиях","окружающий мир","Хромова Арина Андреевна","2Б","Ахметова Елена Николаевна, Костина Валентина Михайловна"]
[85,"МБОУ\"Берескинская СОШ\"Атнинского района РТ"," Юный исследователь (для учащихся начальных классов) Секция №2 «История, краеведение»","Әй кошым, кошкаем","Секция №2 «История, краеведение»","Сабирзянов Айбулат Айдарович",3,"Давлетшина Надия Вафовна, учитель начальных классов"]
[86,"МБОУ\"Берескинская СОШ\"Атнинского района РТ"," Юный исследователь (для учащихся начальных классов) Секция №2 «История, краеведение»","Курчак театры","Секция №4 «Искусство, технология, русский язык  и литература»","Хуснутдинова Алина Рамилевна",4,"Хисматуллина Зульфия Илгизовна,учитель начальных классов "]
[87,"Город Набережные Челны, МАОУ «Гимназия №76","Юный исследователь. ","«Исследование влияния муки из разных круп на показатели пшеничного хлеба»","Секция №1 \"Окружающий мир, здоровье, экология\".","Киршина Мария Александровна","2 Б","Костина Валентина Михайловна учитель начальных классов"]
[88," «Школа №9 с углубленным изучением \nанглийского языка г.Казани \nНово-Савиновского района","окружающий мир, здоровье, экология","«Экология в цифрах»","окружающий мир","Ясаков Константин Дмитриевич",3,"Хуснутдинова Динара Рамилевна, учитель начальных классов"]
[89,"МБОДО «Центр детского творчества г. Азнакаево», МБОУ «Гимназия г. Азнакаево»","Юный исследователь","Я изучаю символику Азнакаевского смуниципального района Республики Татарстан","История, краеведение","Латыпов Нариман Надирович",4,"Латыпова Алина Салиховна, пдо, Сафарова Рафиса Рафаэловна "]
[90,"МБОУ «Симферопольская академическая гимназия»","Юный исследователь \nСекция №2 «История, краеведение»\n","«Экскурсионный маршрут по памятным местам, оставившим свой след в истории Симферополя»","Краеведение","Китаева Алёна Игоревна","3 класс","Шерфединова Ленура Мамутовна\nУчитель начальных классов\n"]
[91," «Актанышская средняя общеобразовательная школа №1» Актанышского муниципального района РТ\n","Юный исследователь\n\n","Модель автономной экологически чистой \nэнергетической установки\n","секция \"Окружающий мир, здоровье, экология\"","Ямалов Азамат Филарисович Фахразиев Раяз Камилевич",3,"Ямалов Филарис Фанисович"]
[92,"«Симферопольская академическая гимназия» г.Симферополь,  Республика Крым","«Окружающий мир, здоровье, экология»","«Образование горы «Аю-Даг» - горного массива Крыма»","география","Толмачева Алиса Андреевна",3,"Скопинцева-Китюк Екатерина Егоровна"]
[93,"«Симферопольская академическая гимназия» г.Симферополь,  Республика Крым","«Окружающий мир, здоровье, экология»","«Исследование цветовой аномалии озера Сасык-сиваш.Причины и последствия\"","география","Абдураманова Сафие Ленур кызы",3,"Скопинцева-Китюк Екатерина Егоровна,"]
[94,"МАОУ \"Гимназия №57\" города Набережные Челны","Юный исследователь (для учащихся начальных классов)","Почему в городе пропадают птицы?","Секция №1 «Окружающий мир, здоровье, экология»","Атнашев Матвей Алексеевич","2 А класс","Атнашева Лилия Владимировна, учитель начальных классов"]
[95,"МАОУ \"Гимназия №57\" города Набережные Челны","Юный исследователь (для учащихся начальных классов)","Ох, уж этот пластик или как помочь экологии?","Секция №1 «Окружающий мир, здоровье, экология»","Абашева Диана Эльдаровна","2 А класс","Атнашева Лилия Владимировна, учитель начальных классов"]
[96,"МАОУ \"Гимназия №57\" города Набережные Челны","Юный исследователь (для учащихся начальных классов)","Невидимый мир вокруг нас, или самое «грязное» место в нашей школе","Секция №1 «Окружающий мир, здоровье, экология»","Муратов Рамазан Рустамович","2 А класс","Атнашева Лилия Владимировна, учитель начальных классов"]
[97,"МАОУ \"Гимназия №57\" города Набережные Челны","Юный исследователь (для учащихся начальных классов)","Удивительный компас","Секция №1 «Окружающий мир, здоровье, экология»","Закиров Тимур Рустемович","2 А класс","Атнашева Лилия Владимировна, учитель начальных классов"]
[98,"МАОУ \"Гимназия №57\" города Набережные Челны","Юный исследователь (для учащихся начальных классов)","Мы по воздуху плывем?","Секция №1 «Окружающий мир, здоровье, экология»","Закиев Карим Ильдарович","2 А класс","Атнашева Лилия Владимировна, учитель начальных классов"]
[99,"МАОУ \"Гимназия №57\" города Набережные Челны","Юный исследователь (для учащихся начальных классов)","Изготовление перископа и его применение на практике","Секция №1 «Окружающий мир, здоровье, экология»","Габитов Камиль Рустамович","2 А класс","Атнашева Лилия Владимировна, учитель начальных классов"]
[100,"МОБУ \"Саха гимназия\" г. Якутск Республика саха (Якутия)","Юный исследователь. Окружающий мир, здоровье, экология","Разведение домашней птицы в условиях крайнего Севера","начальный класс","Абрамова Кристина Тимофеевна ",3,"Дедюкина Людмила Георгиевна, учитель начальных классов"]
[101,"МОК \"Гармония-Школа97\" г.Ижевск","Юный исследователь Секция№4 \"Искусство,технология,русский язык и литература\"","Изготовление цветка розы из фоамирана","Технология","Муллахметова Ильдана","3А","Юнеман Галина Ивановна"]
[102,"МБОУ «Лицей №2 им.акК.А.Валиеваг.Мамадыш»","Юный исследователь Секция№4 \"Искусство,технология,русский язык и литература\"","Анализ жанра басни. Отличие ее от других литературных жанров.","литература","Расулова Амина",3,"Нугуманова Альбина Ильдусовна"]
[103,"МБОУ «Лицей №2 им.ак.К.А.Валиеваг.Мамадыш»","Юный исследователь Секция№4 \"Искусство,технология,русский язык и литература\"","Образ крестьянского человека в сказочной поэзии Пушкина","литература","Расулова Мадина",3,"Нугуманова Альбина Ильдусовна"]
[104,"МБОУ Гимназия №1 города Самара","Юный исследователь","Загадки статического электричества             ","Секция №3  «Физика, математика, химия, информатика»","Петровская Юлия Александровна",3,"Ананьева Светлана Юрьевна"]
[105,"МБОУ \"Малокирменская ООШ\" Мамадышского муниципального района РТ","Юный исследователь","Символика моей малой Родины","Окружающий мир","Мухаметзянов Амир Фанисович","2 класс","Мубаракшина Энже Ясавиевна,учитель начальных классов высшей квалификационной категории"]
[106,"МБОУ \"Нижнеякинская СОШ\"","Юный исследователь ","Авылым чишмәләре","Окружающий мир, здоровье, экология","Юнусова Мадина Ринатовна",4,"Юнусова Гульсира Вакифовна"]
[107,"МБОУ \"Владимировская ООШ\"","  Юный исследователь (для учащихся начальных классов)"," \"Владимирово приютила белорусцов\"  / «ТУГАН АВЫЛЫМ ВЛАДИМИРДА - БЕЛОРУСЛАР»","Секция №2 «История, краеведение»","Нислина Эльвина Владимировна",3,"Юзеева Гульсина Ваккасовна учитель начальных классов"]
[108,"ГАОУ «Школа Иннополис» ","Юный исследователь (для учащихся начальных классов)","Моторизация и модернизация модели\nLEGO TECHNIC 42024 в машину тех. помощи KAMAZ-MASTER\n","Секция №3  «Физика, математика, химия, информатика»","Евлампиев Егор Олегович","4 А класс","Евлампиева М. В., Ясавеева Д.М."]
[109,"МБОУ «Лицей №2 имени академика К. А. Валиева города Мамадыш»Мамадышского  района  \nРеспублики Татарстан  ","Юный исследователь (для учащихся начальных классов)","\"Дерево-здоровья\"","Секция №1 «Окружающий мир, здоровье, экология»","Камаетдинова Камилла Нафисовна","3 а","Сибгатуллина Резида Миргазизовна, Сафина гульсина Назиповна"]
[110,"МБОУ \"Нижнеякинская СОШ\" Мамадышского района  Республики Татарстан"," Юный исследователь ","Туган җиренә кирәкле  кешеләр","История,краеведение","Каримова Алия Ильнаровна",4,"Мубаракшина Рамзиля Абделькарамовна, учитель начальных классов"]
[111,"МБОУ \"Красногорская СОШ\"","русский язык","Фразеологизмы о животных","русский язык","Федоров Роман Николаевич","4а","Филиппова Венера Яковлевна"]
[112,"МБОУ \"Малокирменская ООШ\"","Юный исследователь","Татарстан символлары үрнәгендә авылым мирасы","Окружающий мир","Гимазова Алия Фанилевна",4,"Закирова Фирдавса Рахимшовна"]
[113,"Средняя общеобразовательная школа №7 г. Альметьевска","искусство","Моё увлечение – игра на саксофоне","музыка"," Габдулфартов Альберт"," ученик 1 «А» класса","О.А.Баязитова            учитель начальных классов"]
[114,"МБОУ \"Гимназия №2\" имени Баки Урманче Нижнекамского муниципального района","Секция №1 «Окружающий мир, здоровье, экология»","«Сравнительный анализ качества хлеба из разных пекарен города Нижнекамска»","окружающий мир","Шигапов Халил Айдарович",4,"Насибуллина Раушания Адгамовна, учитель начальных классов; Шигапова Миляуша Фоатовна, учитель-воспитатель"]
[115,"МБОУ \"Гимназия №2\" имени Баки Урманче Нижнекамского муниципального района","Секция №1 «Окружающий мир, здоровье, экология»","«Влияние веса портфеля на здоровье школьника»","окружающий мир","Шайхутдинова Альфия Равилевна, Шайхутдинов Амир Равилевич","4, 2","Насибуллина Раушания Адгамовна, учитель начальных классов; Хусаинова Алета Миннулловна_учитель начальных классов"]
[116,"МБОУ \"Кляушская СОШ\" Мамадышского района РТ","• Юный исследователь ","Жизнь и творчество художника Петра Садофьевича Семёнова","Искусство ","Насибуллина Азалия Ильдаровна",3,"Юсупова Нуршат  Нургалиевна"]
[117,"МБОУ \"Кляушская СОШ\" Мамадышского района РТ","История  и  краеведение","Гурьевка – Лубяны, Лебедевская дача","Окружающий мир","  Мингазов Арыслан Фанзилевич",3,"Плисова Елена Дмитриевна "]
[118,"\"Кукморская средняя школа №3\"Кукморского муниципального района Республики Татарстан","Юный исследователь","Дуб - царь растений","окружающий мир, здоровье, экология","Иванов Алмаз Аликович",2,"Саляхутдинова Гульфия Сирачтиновна, Галимуллина Гульшат Мустафовна"]
[119,"МБОУ \"Среднекирменская СОШ\"Мамадышского муниципального района  РТ","• Юный исследователь (для учащихся начальных классов)         Секция №1 «Окружающий мир, здоровье, экология»","      «По страницам Красной книги Татарстана разного года  издательства»","окружающий мир","Марданов Нурфат Рифатович","2 класс","Фасхутдинова  Наиля Асгатовна"]
[120,"МБОУ \"Катмышская СОШ\"","Юный исследователь ","\"Туган авылым тарихы\"","История,краеведение","Шарифуллина Сюмбеля Ленаровна",4,"Гизатулина Зульфия Рашидовна"]
[121,"МАОУ \"СОШ № 7\" Альметьевск","Юный\nисследователь","О чём может рассказать название моей улицы","История, \nкраеведение","Барченкова\nЕлизавета\nМихайловна",1,"Тимофеева Наталья Алексеевна, учитель начальных классов высшей квалификационной категории"]
[122,"МБОУ \"Олуязский лицей\"","Юный исследователь  Секция №1 «Окружающий мир, здоровье, экология»","\"Авылыма экологик сукмак\"","Окружающий мир","Садыкова Альбина Алмазовна","2а класс","Аглямзянова А.Ф.- учитель начальных классов"]
[123,"МБОУ \"Куюк-Ерыксинская СОШ\"","Юный исследователь\n        \n","\"Почему снег белый?\"","Секция №1\"Окружающий мир,здоровье,экология\"","Гараева Инзиля Фанилевна",3,"Рахматуллина Гульнара Рашитовна,учитель начальных классов"]
[124,"МБОУ \"Лицей № 2 им.ак. К. А. Валиева г. Мамадыш\"","Юный исследователь (для учащихся начальных классов)","Рафаил Газизов шигырьләрендә тел сурәтләү чаралары","Татарский язык и литература","Исхакова Зарина Фанзилевна","2 А","Галиева Фания Ягъфаровна"]
[125,"МБОУ \"Шушмабашская средняя общеобразовательная школа\"  Арский  район","\"Юный исследователь\"","\"Күзләремне күзләдем...\"","окружающий мир ","Самигуллина Иркя Фуатовна",3,"Тазетдинова Гульшат Ринатовна,"]
[126,"МБОУ «Заинская средняя общеобразовательная школа №6 » Заинского  района Республики Татарстан","Юный исследователь (здоровье)","В хоккей играют настоящие мужчины","Начальные классы","Миннехузин Нияз Ильфатович",2,"Грушева Галина Владимировна"]
[127,"\"Дюсьметьевская средняя общеобразовательная школа\"","Юный исследователь.","Семейные традиции","Татарский язык и литература","Шаяхметова Нафиса Ильшатовна",4,"Шаяхметова Альфия Ильсуровна, учитель начальных классов, Iкатегория"]
[128,"МБОУ «Заинская средняя общеобразовательная школа №6 » Заинского  района Республики Татарстан","Юный исследователь (История)"," Из семейного фотоальбома – в летопись страны","Начальные классы","Якимов Максим Максимович ",2,"Грушева Галина Владимировна,"]
[129," «Средняя общеобразовательная школа №7 г. Альметьевска РТ»","Юный исследователь","Колобок, колобок, я тебя съем","Литература","Зарипов Айдар Рашидович","1 \"А\"","Баязитова Ольга Александровна"]
[130,"МБОУ\"Лицей №2 им.ак. К.А. Валиева г.Мамадыш\"","математика","Оригами и математика","математика","Максимова Альбина Фазлеева Гузель","3 класс","Петрова Г.Н. Фазлеева Г.И."]
[131,"МБОУ\"Усалинская СОШ\"","Юный исследователь","Май канаты үрү","Секция №4 «Искусство, технология, русский язык и литература»","Зиатдинов Айназ Альмирович","2а","Аксакова Гузалия Шайхатдаровна,учитель начальных классов"]
[132,"МАОУ \"Гимназия №61\" г.Набережные Челны","Юный исследователь (секция \"Физика, математика,химия, информатика) \"","Поющие бокалы","физика, технология","Кутузова Дарья ","2 класс","Алёхина Д. Ф."]
[133,"МАОУ \"Гимназия №61\" г.Набережные Челны","Юный исследователь (секция \"Физика, математика,химия, информатика) \"","«Волшебный снег в любое время года","физика, технология","Каримов Булат ","2 класс","Алёхина Д. Ф."]
[134,"МБОУ СОШ № 6 г. Бугульма"," История, краеведение","Казанско-богородицкий женский монастырь","история","Зиннурова Саида Рустемовна",2,"Мустафина Расима Галимзяновна, учитель начальных классов"]
[135,"МБОУ \"Нижнеякинская СОШ\" Мамадышского района  Республики Татарстан","юный исследователь","Һәйкәлләрдә-авылым язмышы","начальные классы","Мухаметзянова Эльза Алмазовна",4,"Гарипова Минниса Миннегалиевна, учитель начальных классов"]
[136,"МБОУ \"Лицей№2 им.ак.К.А.Валиева г.Мамадыш\"","\"Юный исследователь\"","\"Чудеса в шахматной стране\"","Окружающий мир","Маманова Эвелина Руслановна","1В","Галимуллина Асия Мансуровна"]
[137,"МБОУ \"Лицей№2 им.ак.К.А.Валиева г.Мамадыш\"","\"Юный исследователь\"","\"Как не потерять  волшебный ключик\"","Технология","Нурмиева Резеда Дамировна","1В","Галимуллина Асия Мансуровна"]
[138,"МБОУ \"Гимназия №32\"  г. Нижнекамска РТ","Юный исследователь (для учащихся начальных классов)","Изготовление лизуна в домашных условиях","Окружающий мир","Фалахиева Алсу Рафисовна","4г","Фалахиева Ильмира Ризатдиновна"]
[139,"МАОУ \"Гимназия №61\" г.Набережные Челны","Юный исследователь (секция \"Экология\"","\nЭКОЛОГИЯ И ПЛАСТИКОВАЯ БУТЫЛКА ","окружающий мир","Салахутдинова Агата","2 класс","Алёхина Д. Ф."]
[140,"МБОУ\"Лицей №2 имени академика К.А.Валиева города Мамадыш\"","Юный исследователь.","Мой прадед Штукин Тарас участник гражданской войны в Мамадыше","История, краеведение.","Штукина Мирослава Алексеевна","1Б","Садыкова Гульнара Мансуровна - учитель начальных классов, Давыдова Г.Г"]
[141," «Средняя общеобразовательная школа №3 города Мамадыш» Мамадышского муниципального района Республики Татарстан","история, краеведение","«Стахановское движение в Мамадыше»","история, краеведение","Мухутдинова Зухра Ильшатовна","3А","Загидуллина Гульнара Марселевна"]
[142,"МБОУ \"Алгаевская начальная школа-детский сад\" Мамадышского муниципального района РТ","Юный исследователь","Пуховое одеяло земли","Окружающий мир","Хазиева Ралия  Зуфаровна",4,"Шамсутдинова Д.Н., Аскарова Р.З."]
[143,"МАОУ \"Лицей №2\" г. Альметьевска РТ","История и краеведение","Поздравительная  открытка.                                         Истоки возникновения.","История","Анисахарова Валерия Максимовна ",1,"Чиж Ольга Александровна учитель начальных классов высшей категории"]
[144," «Средняя общеобразовательная школа №3 города Мамадыш» Мамадышского  района Республики Татарстан","Юный исследователь (для учащихся начальных классов)  ","История детских домов Мамадышского района","Секция №2 \"История и краеведение\"                     ","Ханов Даниэль Анатольевич","4Б","Григина Оксана Николаевна"]
[145,"МБОУ \"Шадчинская СОШ\"","Секция №2   «История, краеведение»","Төбәгебез горурлыгы","Начальный класс","Ахатов Данис Фанисович",2,"Самигуллина Гульзеда Галимхановна, учитель начальных классов"]
[146,"«Тавельская средняя \nобщеобразовательная школа» \nМамадышского\nмуниципального района \nРеспублики Татарстан","Юный \nисследователь","Сила музыки","Начальные\nклассы","Будылин Антон Викторович",3,"Аглямзянова Дамира Нурисламовна учитель начальных классов"]
[147,"МБОУ \"СОШ №31 с углубленным изучением отдельных предметов\" НМР РТ","Секция №2 «История, краеведение»","Учительская династия в моей семье","Краеведение","Гимадиев Ильназ Ильдарович",3,"Гимадиева Лилия Ильсуровна, Ашрапова Диляра Фаритовна учителя начальных классов, первая квалифиационная категория"]
[148,"Муниципальное \nбюджетное\n общеобразовательное\n учреждение \n«Тавельская средняя \nобщеобразовательная школа» \nМамадышского\nмуниципального района \nРеспублики Татарстан","Юный \nисследователь","Правильная осанка - \nзалог \nздоровья","Начальные\nклассы","Гайнуллина\n Сюмбель \nСалаватовна",4,"Шакурова \nГульнара \nНазмутдиновна\nучитель начальных классов"]
[149,"МБОУ \"Нижнеошминская СОШ\"","Юный исследователь (для учащихся начальных классов)","Шелковая курица","Секция №1 «Окружающий мир»","Гимадеева Зиля Ильназовна",1,"Мухаметзянова Гульнар Габдрахмановна, учитель начальных классов"]
[150,"МБУ СОШ №6 г.Бугульма РТ","Окружающий мир, здоровье, экология","Польза плавания","Биология","Резатдинов Даниил Ленарович","2 А","Мустафина Расима Галимзяновна - Учитель начальных классов"]
[151,"МБОУ Гимназия №1, г. Самара","Юный исследователь, секция №3 \"Физика, математика, химия, информатика\"","Химические процессы на кухне","Химия","Трофимова Екатерина Евгеньевна","3 \"Г\" ","Ананьева Светлана Юрьевна, учитель начальных классов"]
[152,"МБОУ \"Сапмановская СОШ\"","Юный исследователь. Секция \"Окружающий мир, здоровье, экология\"","Волшебный чеснок","Окружающий мир","Сафина Руфина Ильнаровна",2,"Гатина Гульназ Рафисовна, учитель начальных классов"]
[153,"Гимназия № 26 г. Набережные Челны","Искусство и технология","Механические музыкальные инструменты","Искусство и технология","Есина Марина Сергеевна","3Б","Сергеева Э.Р., учитель начальных классов"]
[154,"МБОУ \"Дюсьметьевская СОШ\"   Мамадышского муниципального района","Юный исследователь","Обычаи и обряды кряшен во время зимних и весенних праздников","история","Семенов Радислав",3,"Ахмадеева Зоя Васильевна"]
[155,"Муниципальное бюджетное общеобразовательное учреждение \"Кукморская счредняя школа № 3\"","Юный исследователь","Семейные традиции","История, краеведение","Хазиев Карим ","3г класс","Гордеева Л. А., учитель начальных классов, Сабирова З.Р., учитель начальных классов"]
[156,"МБОУ \"Лицей 32 им. Ак. К.А.Валиева г. Мамадыш\" ","Секция \"Окружающий мир\"  \"юный исследователь\"","Влияние талой воды на культурные растения на примере гороха и лука.","окружающий мир ","Ханова Ленара, Тазиева Зарина","3 Б, 4Б"," Вагизова Зинфира Гафиятулловна, Лучкина Наталья Александровна"]
[157,"Гимназия № 26 г. Набережные Челны","Искусство и технология","Механические музыкальные инструменты","Искусство и технология","Есина Марина Сергеевна","3Б","Сергеева Э.Р., учитель начальных классов"]

{"sheet":"студент","index":10,"n_rows":9,"n_cols":10,"rows_kept":9,"merged":[[1,1,4,1],[1,2,4,2],[1,3,4,3],[1,4,4,4],[1,5,4,5],[1,6,4,6],[1,7,4,7],[5,1,8,1],[5,2,8,2],[5,3,8,3],[5,4,8,4],[5,5,8,5],[5,6,8,6],[5,7,8,7]]}
[null,"Наименование\nОУ\n","Направление конкурсной работы","Название работы","Предмет ","ФИО автора работы","Класс ","Руководитель ","работа","оплата"]
[null,"ГАПОУ «Мамадышский политехнический колледж»","Исследовательский проект в естественно–математической области (для студентов учреждений среднего специального и высшего образования)","Счетчик  для отжиманий от пола при сдаче нормативов ГТО и соревнований по полиатлону","Информатика и физкультура","Гумаров Айбулат Марсович, Беляков Кирилл Сергеевич, Щербенев Александр Андреевич","31 ТМ –3 курс, \n11 ТО - 1 курс","Комаров Дмитрий Андреевич"]
[]
[]
[1]
[null,"ГАПОУ «Мамадышский политехнический колледж»","История и краеведение, жизнь и научная деятельность К.  А. Валиева","Из жизни замечательных людей. Фоат Абдуллович Гарифуллин – \nПедагог и Человек с большой буквы.\n","История и краеведение","Львова Юлия Витальевна, Шарифуллин Динислам Рамилевич","21 П – 2 курс, 11 ТО - 1 курс","Тимербаева Назира Загитовна, Порываева Нафиса Сабитовна - преподаватели"]
[]
[]
[2]

{"sheet":"ЮНЕСКО","index":11,"n_rows":1,"n_cols":10,"rows_kept":1}
[null,"Наименование\nОУ\n","Направление конкурсной работы","Название работы","Предмет ","ФИО автора работы","Класс ","Руководитель ","работа","оплата"]

{"sheet":"не понятки","index":12,"n_rows":3,"n_cols":10,"rows_kept":3}
[null,"Наименование\nОУ\n","Направление конкурсной работы","Название работы","Предмет ","ФИО автора работы","Класс ","Руководитель ","работа","оплата"]
[]
[1,"Муниципальное бюджетное общеобразовательное учреждение cредняя общеобразовательная школа №4 Бугульминского муниципального района Республики Татарстан","Окружающий мир","Профориентация в начальной школе – первый шаг к выбору профессии.","Исследовательский проект","Дурандина Илона","6Б","Хафизова Ильмира Мирхатовна"]

{"sheet":"статьи","index":13,"n_rows":196,"n_cols":6,"rows_kept":196,"merged":[[107,5,109,5],[107,6,109,6],[107,7,109,7],[107,8,109,8]]}
[null,"Наименование\nОУ\n","ФИО автора работы","работа","оплата"]
[1,"МБОУ \"Мульминская средняя общеобразовательная школа Высокогорского  муниципального района Республики Татарстан\"","Ахмитянова Флюра Рафгатовна","выступление"]
[2,"МБОУ»СОШ №24 сУИОП»г. Казань. Приволжский район","Абдуллина Милауша Хикамутдиновна, Николаева Наталья Евьгеньевна, Потапкова Альбина Александровна"]
[3,"МБОУ «Основная общеобразовательная школа № 168 с продлённым днём обучения для детей соматическими заболеваниями» Авиастроительного района г. Казани","Шишова Эльмира Ришатовна"]
[4,"МБОУ \"Мульминская средняя общеобразовательная школа Высокогорского  муниципального района Республики Татарстан\"","Ахмитянова Флюра Рафгатовна"]
[5,"МБОУ \"Саклов-Башская СОШ\" Сармановского муниципального района РТ","Нуриева Талия Рафисовна"]
[6,"МАОУ \"Гимназия №76\"","Климина Маргарита Юрьевна","выступление"]
[7,"Шикшинская ООШ Сабинского муниципального района","Гибадуллина Ризяля Хайдаровна"]
[8,"МБОУ \"Среднекирменская СОШ\"Мамадышского муниципального района  РТ","Марданова Алсу Шамиловна"]
[9,"Мамадышский р-он","Габитова Л.Г.,Хурамшин Н.И."]
[10,"МБОУ \"Среднекирменская СОШ\"Мамадышского муниципального района  РТ","Шамсутдинова Лейля Азатовна"]
[11,"МБОУ \"Гимназия №5\" Авиастроительного района г.Казани","Мубаракшина Джамиля Ахатовна,\n \n"]
[12,"МОУ \"Гимназия № 21\" г. Казань","Сафина Гульнара Мансуровна"]
[13,"МБОУ «СОШ №1 г. Мамадыш»","Мингазова Альфия Наилевна, Ахметзянова Райса Минлегалиевна "]
[14,"МБОУ \"Среднекирменская СОШ\"Мамадышского муниципального района  РТ","Шайдуллина Лейля Альбертовна"]
[15,"МБОУ \" Среднекирменская  СОШ\" Мамадышский муниципальный район РТ","Фасхутдинова  Наиля Асгатовна"]
[16,"МБОУ \"СОШ №31\" НМР РТ","Бадгиева Эльза Даниязовна, Шандренкова Надежда Германовна"]
[17,"МАОУ \"СОШ №17\", г.Альметьевск","Надина Мария Ивановна"]
[18,"МАОУ \"Гимназия № 76\" г. Набережные Челны","Костина Валентина Михайловна"]
[19,"МБОУ \"СОШ №19\" г.Нижнекамск, РТ","Ахметова Резеда Ильдусовна"]
[20,"МБОУ \"Среднекирменская СОШ\"","Хасанова Гульназ Накиповна"]
[21,"МБОУ КСШ №3 г.Кукмор РТ","Латипова Лилия ФаизовнаСавыкова Раиса Габдрафиковна, ШафиковаГульназДамировна",null,null,"4 страниц"]
[22,"МБОУ \"Средняя общеобразовательная школа №3 города Мамадыш\" Мамадышского муниципального района","Валиева Резеда Зуфаровна"]
[23,"МБОУ \"СОШ №91\" г.Казань","Глебова Ирина Анатольевна"]
[24,"МБОУ \"Муслюмовская гимназия\" Муслюмовского муниципального района РТ","Кадирова Азиля Рамиловна Тимергалиева Эльмира Василовна"]
[25,"МБОУ \"Сармановская гимназия\"","Нафикова Алсу Ясировна, Галялиева Винера Николаевна"]
[26,"\"Средняя общеобразовательная школа№ 8\" Елабужского муниципального района Республики Татарстан","Рамазанова Тамара Каламдаровна"]
[27,"ГБООУ \"БСШИ г. Болгара РТ","Михеева Ирина Николаевна, Брыкалова Евгения Алексеевна"]
[28,"Гимназия №76, г.Набережные Челны","Никифорова Ольга Анатольевна"]
[29,"МОБУ \" Саха гимназия\" Республика Саха (Якутия) Окружное упрвлание \" город Якутск","Лебедева Мария Романовна","выступление"]
[30,"Муниципальное бюджетное дошкольное образовательное учреждение детский сад комбинированного вида № 10 \"Радуга\" Бугульминского муниципального района РТ","Дмитриева Вера Александровна                   Косолапова Надежда Александровна                          Наумова Ольга Викторовна Решетникова Любовь Вениаминовна",null,"2250,00 ?"]
[31,"Муниципальное бюджетное общеобразовательное учреждение \"Старошешминская средняя общеобразовательная школа\" Нижнекамского муниципального района Республики Татарстан","Ахметова Айзаря Занифовна"]
[32,"МБОУ\"Красногорская СОШ\"","Низамиева Гулия Шамсатовна"]
[33,"Муниципальное бюджетное общеобразовательное учреждение города Ульяновска «Средняя школа №21»","Савельева Любовь Александровна","выступление"]
[34,"МБОУ \" СОШ №3 г. Мамадыш\"","Хасанова Эндже Шарифулловна"]
[35,"МБОУ «Гимназия №32» Нижнекамск","Исангильдина Аида Рафиковна"]
[36,"ГБООУ \" Болгарская санаторная школа-интернат\"","Кобенячкина Ольга Александровна"]
[37,"ГБООУ \" Болгарская санаторная школа-интернат\"","Бухалова Гильсиря Минтаировна"]
[38,"ГБООУ \" Болгарская санаторная школа-интернат\"","Низамова Алсу Салимовна"]
[39,"г.Казань МБОУ \"Школа № 70\"","Ихсанова Лилия Юрьевна Миронова Екатерина Викторовна"]
[40,"Муниципальное бюджетное общеобразовательное учреждение \"Кукморская счредняя школа № 3\"","Гордеева Лариса Александровна"]
[41,"МБОУ \"СОШ № 3\" Менделеевского района","Аликбарова Альбина Рафиковна Исрафилова Светлана Харисовна"]
[42,"МБОУ «Школа № 9 с углубленным изучением английского языка» Ново-Савиновского района г.Казани","Хуснутдинова Динара Рамилевна"]
[43,"МБОУ \"Школа №89\" Ново-Савиновского района г.Казани","Зарипова Алсу Рашидовна Хусниева Алсу Сагитовна"]
[44,"МАОУ \"Гимназия №76\"","Костина Валентина Михайловна"]
[45,"МБОУ \"Средняя общеобразовательная школа № 8\" Елабужского муниципального района РТ","Е.С.Малкова, Л.Н.Герасимова, С.Х. Исакова, Ф.К. Залялиева"]
[46,"Гимназия №32","Юганова Евгения Михайловна"]
[47,"МБОУ \"Чепчуговская СОШ Высокогорского муниципального района РТ\"","Блохина Елена Николаевна"]
[48,"Государственное общеобразовательное учреждение \"БСШИ\"","Артюшина Анастасия Валерьевна Лукашина Светлана Михайловна"]
[49,"МБОУ «Заинская средняя общеобразовательная школа №6»","Хохлова Л.В",null,"заплочено, не опублик. в прошлом году "]
[50,"МБОУ «Заинская средняя общеобразовательная школа №6»","Баландина Л.А"]
[51,"МБОУ \"Лицей №2 имени ак К.Валиева Г. Мамадыш\"","Галеева И.И.Гуня О.А."]
[52,"ГАОУ\n«Школа Иннополис»","Чанышева \nГузель Хамидовна, Фомина Татьяна Ивановна "]
[53,"МБОУ «Школа № 9 с углубленным изучением английского языка» Ново-Савиновского района г.Казани","Хуснутдинова Динара Рамилевна"]
[54,"ГАОУ \"Школа \nИннополис\"","Тихонова  Юлия Андреевна Львова Ангелина Дмитриевна"]
[55,"ГАОУ \"Школа \nИннополис\"","Королева  Анна  Николаевна Гайнутдинова  Айгуль Ильдаровна"]
[56," Алексеевская средняя общеобразовательная школа №3 им. Г. С. Боровикова Алексеевского муниципального района","Дубровина Наталья Борисовна"]
[57,"МБОУ \"Политехнический лицей № 182\" г.Казань","Саитова Миляуша Рассамовна"]
[58,"Белгородская обл Старооскольская Сош №3","Воропаева М.Л., Крылова Т.А."]
[59,"МБОУ \"СОШ №4\"","Хабибуллина Фарида Гаязовна Куренова Наталия Александровна"]
[60,"МАОУ \"СОШ№7\"","Баязитова Ольга Александровна"]
[61,"МБОУ СОШ №6 Бугульминского муниципального района РТ","Тарасова Светлана Ивановна, Мустафина Расима Галимзяновна, Валяева Марина Ильинична"]
[62,"МБОУ \"СОШ №31 с углубленным изучением отдельных предметов\" НМР РТ","Ашрапова Диляра Фаритовна, Гимадиева Лилия Ильсуровна"]
[63," \"Средняя общеобразовательная школа №7\" г. Альметьевска Ресрублики Татарстан","Сабаева Мария Александровна  "]
[64,"«Дом детства и юношества» Мамадышского муниципального района ","Ишпахтин Игорь Николаевич"]
[65,"МБОУ \"Гимназия №1\" имени Мусы Джалиля НМРО РТ","Марданшина Светлана   Фаиговна"]
[66,"МБОУ \"СОШ № 27\" с углубленным изучение отдельных предметов НМР РТ","Хайрутдинова Гузель          Фоатовна"]
[67,"МБОУ «Гимназия №2» имени Баки Урманче  г Нижнекамск   ","Фаляхова Гульзида Хикамутдиновна"]
[68,"МБОУ \"Школа №130\" Московский район город Казань","Хабибуллина Полина Сергеевна"]
[69,"Муниципальное общеобразовательное учреждение \"Лицей №149 с татарским языком обучения\"","Сулайманова Хана Хайдаряновна"]
[70,"Муниципальное бюджетное общеобразовательное учреждение \"Кукморская счредняя школа № 3\"","Гордеева Лариса Александровна"]
[71,"МБОУ \"Сармановская гимназия\"","Матзянова Раушания Гаязовна Салихова Алсу Нисбатовна"]
[72,"МБОУ \n\"Дюсьметьевская СОШ\" Мамадышского муниципального района РТ","Егорова\n Елена Петровна"]
[73,"ГБООУ \"Болгарская санаторная школа-интернат\"","Журавлёва Венера Равильевна"]
[74,"МБОУ «Дюсьметьевская средняя\n общеобразовательная школа»\n Мамадышского муниципального\n района РТ","Семенов Радик Михайлович"]
[75,"МБОУ  «Лицей №2 имени академика К. А. Валиева города Мамадыш» Мамадышского муниципального района  ","Сафина Гульсина Назиповна Сибгатуллина Резида Миргазизовна"]
[76,"ГБОУ «Мамадышская школа-интернат для детей с ограниченными возможностями здоровья», г.Мамадыш РТ","Мухаметзянова Эльмира Равилевна"]
[77,"ГБОУ «Мамадышская школа-интернат для детей с ограниченными возможностями здоровья», г.Мамадыш РТ","Вагизова Г.Р.,   Васильева Е.М. , Рафикова Г.Ш."]
[78,"ГБОУ «Мамадышская школа-интернат для детей с ограниченными возможностями здоровья», г.Мамадыш РТ","Шарифуллина Г.П.Хасаншина Л.И., Зиганшина Л.А."]
[79,"ГБОУ \"Мамадышская школа-интернат  для детей с ограниченными возможностями здоровья\", ","Хакимова Минзалифа Нурмухаметовна, Ахметова Гульсина Габделхаевна, Чекараева Римма Николаевна"]
[80,"МБОУ \"Малокирменская ООШ\"","Гиздатуллин Ильфир Рахимшович"]
[81,"Зюринская СОШ","Муфахарова Лилия Василовна"]
[82,"МБОУ «Шадчинская СОШ» Мамадышского муниципального района РТ","СалимзяноваАльфияЗамановна"]
[83,"МБОУ «СОШ №41»  город Набережные Челны","Матросова Светлана Фаритовна"]
[84,"МБОУ «Гимназия №2» имени Б.Урманче","Валиева Сирень Фардусовна,                 Шакирова Эндже Каримовна"]
[85,"МБОУ  СОШ №4 Г.Мамадыш","Куренин Евгений Владимирович"]
[86,"МБОУ \"Малокирменская ООШ\"","Закирова Ф.Р."]
[87,"МКУ \"Отдел образования\" исполнительного комитета Мамадышского муниципального района","Сафина Г. М., Миннегалиева С.Н."]
[88,"ГКУ «Социальный приют для детей и подростков «Надежда» в Мамадышском муниципальном районе»","Китаева Альсина Сапарбаевна"]
[89,"Муниципальное бюджетное общеобразовательное учреждение \"Кукморская счредняя школа № 3\"","Габбасова  Расима Расимовна;          Маврина Ляйля Габдрашитовна"]
[90,"Муниципальное бюджетное общеобразовательное учреждение «Гимназия №75» Московского района г.Казани","Миронова Элина Викторовна",null,null,"6 страниц"]
[91,"ГБОУ \"Мамадышская школа-интернат\"","Мубаракшин Айдар Ильдусович"]
[92,"МБОУ \"СОШ № 3 г. Мамадыш\"","Мубаракшина Лейсан Забировна"]
[93,"МБОУ \"Малокирменская ООШ\"","Мубаракшина Энже Ясавиевна"]
[94,"«Мамадышская школа-интернат для детей с ограниченными возможностями здоровья», ","Аглиуллина Алина Закиевна, Сонгатуллина Гульнара Ахунзановна, Мингалева Светлана Петровна"]
[95,"МБОУ \"Лицей № 177\" Ново-Савиновского района г. Казани ","Гатауллина Разина Фархатовна, Ганеева Алина Раисовна"]
[96,"МБОУ \"СОШ № 41\" г. Набережные Челны","Пилипенко Наталья Викторовна"]
[97,"МБОУ «Мамадышская школа-интернат для детей с ОВЗ»","Бакакина О.Ю., Максимова Е.В., Нагаева Л.Т."]
[98,"МБДОУ «Катмышский детский сад Мамадышского муниципального района РТ»","Мисбахова Р.Г.",null,null,"6 страниц"]
[99,"МБОУ \"Шадчинская СОШ\" Мамадышского муниципального района РТ","Салимова Гульчачак Фаизовна"]
[100,"МБОУ \"Среднекирменская СОШ\"Мамадышского муниципального района  РТ","Шамсутдинова Лейля Азатовна"]
[101,"Муниципальное бюджетное общеобразовательное учреждение \"Гимназия №125\" Советского района г.Казани  РТ, ГАОУ \"Школа -иннополис\"","Касимова А. М., Евлампиева М.В., Ясавеева Д.М.","выступление"]
[102,"Мамадышский муниципальный район МБОУ \"Усалинская СОШ\"","Насибуллина Гулия Ханифовна"]
[103,"МБОУ \"Куюк-Ерыксинская СОШ\"","Галиева Равия Зиятдиновна"]
[104,"МБОУ \"Куюк-Ерыксинская СОШ\"","Рахматуллина Гульнара Рашитовна"]
[105,"МБОУ \"Куюк-Ерыксинская СОШ\"","Низамова Эндже Миннулловна"]
[106,"МБОУ “Дюсьметьевская средняя общеобразовательная школа»Мамадышского муниципального района РТ","Габдрафикова А.И."]
[107,"МБОУ \"Лицей №2 им ак К.Валиева г.Мамадыш\"","Ермолаева Р.Г., Шайхутдинована Р.Р."]
[108,"МБОУ «Дюсьметьевская средняя общеобразовательная школа» Мамадышского муниципального района РТ","Мухаметкулова Альбина Рифкатовна"]
[109," \"Средняя общеобразовательная школа № 7\" г. Альметьевска Республики Татарстан","Тимофеева Наталья Алексеевна"]
[110,"МБОУ «Заинская средняя общеобразовательная школа №6» Заинского муниципального района РТ (школа - центр компетенции)","Александрова Елена Александровна"]
[111,"МБОУ \"СОШ № 1 г.Мамадыш\"","Сафуанова Ильнара Нурмухаметовна"]
[112,"МБОУ \"Лицей №2 им.ак.К.А.Валиева» г.Мамадыш","Галиева Фания Ягъфаровна, Каримова Лилия Миннахметовна"]
[113,"МБОУ «Дюсьметьевская средняя\n общеобразовательная школа»\n Мамадышского муниципального\n района РТ","Усманова Фирдауса Ахметхановна"]
[114,"МБОУ \"Средняя общеобразовательная школа № 19\" НМР РТ","Куряева Людмила Петровна"]
[115,"МБОУ \"Владимировская ООШ\" Мамадышского муниципального района","Романова Галина Ивановна "]
[116,"ГАОУ\"Школа Иннополис\"","Шишина Ольга Николаевна"]
[117,"МБОУ \"Шадчинская СОШ\" Мамадышского муниципального района РТ","Шрыкова Гюзель Ильдусовна"]
[118,"МБОУ \"Катмышская СОШ\"","Габидуллина Гюзелия Габдулхаковна Яхина Земфира Габдулбаровна Шарифуллина Ильсеяр Мунировна"]
[119,"  МБОУ \"Катмышская СОШ\"","Хуснуллина Ракия Фатиховна"]
[120,"МБОУ «Лицей №2 им.ак.К.А. Валиева г.Мамадыш»","Ермолаева Регина Геннадьевна Шайхутдинова Руфия Робертовна"]
[121,"МБОУ \"Усалинская СОШ\" Мамадышского района РТ","Исмагилова Аниса Равиловна"]
[122,"МБОУ \"Среднекирменская СОШ\"","Искандарова Гульназ Вакиповна"]
[123," «Средняя общеобразовательная школа №3 города Мамадыш» Мамадышского муниципального района Республики Татарстан","Салахова Миляуша Нурулловна"]
[124,"МБОУ \"Среднекирменская СОШ\"","Марданов Рифат Асгатович"]
[125,"МБОУ \"Тавельская СОШ\" Мамадышского муниципального района РТ\n","Кузнецов Анатолий Васильевич и Кузнецова Елена Павловна"]
[126,"МБОУ \"СОШ №27\", МБОУ \"Гимназия №2\" имени Баки Урманче, г Нижнекамск","Загидуллина Ания Адгамовна, Насибуллина Раушания Адгамовна"]
[127,"Муниципальное бюджетное общеобразовательное учреждение «Кукморская средняя школа №3» Кукморского муниципального района Республики Татарстан","Гатина Гульназ Рашитовна Саляхутдинова Гульфия Сирачтиновна"]
[128,"Муниципальное бюджетное общеобразовательное учреждение «Средняя общеобразовательная школа №31 с углубленным изучением отдельных предметов» Нижнекамского муниципального района Республики Татарстан  ","  1. Надежда Германовна Шандренкова,               2. Раиса Юрьевна Ямщикова"]
[129,"Муниципальное  бюджетное \nобщеобразовательное учреждение «Зюринская средняя  общеобразовательная школа»","Герасимова Галина Петровна"]
[130,"Муниципальное бюджетное общеобразовательное учреждение «Средняя общеобразовательная школа №31 с углубленным изучением отдельных предметов» Нижнекамского муниципального района Республики Татарстан  ","Алевтина Петровна Даутова,  Надежда Германовна Шандренкова "]
[131,"ГАОУ \"Школа Иннополис\"","Шаймухаметова Эльвира Рамилевна"]
[132,"МБОУ  «Нижнеошминская средняя общеобразовательная школа»","Галеева  Насима Хусаиновна, Хабибрахманова Лейсан Камилевна"]
[133,"МБОУ \"Гимназия №1\" имени Мусы Джалиля НМРО РТ","Марданшина Светлана   Фаиговна"]
[134,"МБОУ \"СОШ № 27\" с углубленным изучение отдельных предметов НМР РТ","Хайрутдинова Гузель          Фоатовна"]
[135,"МБОУ \"Никифоровская\nООШ\" Мамадышского \nмуниципального\nрайона РТ","Максимова\nТамара\nПавловна"]
[136,"МБОУ «Заинская средняя общеобразовательная школа №6 » (школа – центр компетенции) Заинского муниципального района Республики Татарстан","Грушева Галина Владимировна"]
[137,"МБОУ «Средняя общеобразовательная школа № 70 с углубленным изучением отдельных предметов» Кировского района города Казани ","Хафизова Гулия Саматовна"]
[138,"МБОУ \"Школа№167\"Советского района г.Казани","Юсупова Алсу Альбертовна,               Таимов Камиль Назимович"]
[139,"ГБОУ \"Мамадышская школа-интернат для детей с ОВЗ\"","Рахимуллина Г.А.Шарифуллина А.А."]
[140,"МБОУ \"Школа№167\"Советского района г.Казани","Гараева Рамиля Галимзяновна, Таимов Камиль Назимович"]
[141,"МБОУ \"Лицей №2 имени академика К.А.Валиева г.Мамадыш\"","Фазлеева Гульнур Ильдусовна, Петрова Гульнур Нуретдиновна, Халикова Гузель Бариевна"]
[142,"МБОУ  «Нижнеошминская средняя общеобразовательная школа»","Камалов И.Т. учитель высшей категории; Камалова М.И. учитель первой категории"]
[143,"МБОУ \"Нижнеошминская СОШ\"","Ахметзянова\n Эльмира Хатиповна Хузаянова \nРазиля Ильфатовна "]
[144,"ГБОУ \"Мамадышская школа-интернат для детей с ОВЗ\"","Сальманова Л.Г."]
[145,"ГБОУ \"Мамадышская школа-интернат для детей с ОВЗ\"","Насибуллина Н.Р.Мухутдинова Э.Р. Фаляхова З.Г."]
[146,"Муниципальное бюджетное общеобразовательное учреждение «Средняя общеобразовательная школа №3 города Мамадыш» Мамадышского муниципального района Республики Татарстан","Потапова Светлана Николаевна                    Григина Оксана         Николаевна"]
[147,null,"Садыкова Лариса Павловна"]
[148,"МБОУ «Заинская основная общеобразовательная школа №1»","Максимова Алина Михайловна"]
[149,"МБОУ \"Усалинская СОШ\" Мамадышского района РТ","Файзрахманова Эльмира Дияттиновна"]
[150," МБОУ \"Шушмабашская средняя общеобразовательная школа\" Арского муниципального района РТ","Тазетдинова Гульшат Ринатовна"]
[151,"МБОУ «Лицей №2 им.ак.К.А.Валиева», г. Мамадыш","Камалова Г.Х., Гафурова Р.Х., Гимазова З.М."]
[152,"МБОУ \"Зюринская СОШ\"","Хаффазова Мадина Тимергалиевна"]
[153,"МБОУ \"Зюринская СОШ\"","Вятская Елена Александровна"]
[154,"МБОУ«Средняя общеобразовательная школа №3 города Мамадыш»  РТ","Загидуллина Гульнара Марселевна Мухаметханова Елена Анатольевна",null,"оплоп"]
[155,"МАОУ \"Гимназия №61\" г.Набережные Челны","Нуриева Эльза Гаязовна"]
[156,"Муниципальное бюджетное общеобразовательное учреждение \"Заинская основная общеобразовательная школа №1\"","Ефремова Лариса Альбертовна"]
[157,"ГБОУ «Мамадышская школа-интернат для детей с ограниченными возможностями здоровья», г.Мамадыш РТ","Насибуллина Лилия Магсумовна, Павлова Р.С.. Сиразеева  Г.Р."]
[158,"МБОУ \"Нижнеошминская СОШ\"","Салимова Рамзия Талгатовна"]
[159,"МБОУ \"Катмышская СОШ\"","Салимов Ильгиз Халимович"]
[160,"МБОУ \"СОШ № 3 г. Мамадыш\"","Сайфиева Резеда Миннегалиевна"]
[161,"ГКУ «Социальный приют для детей и подростков «Надежда» в Мамадышском муниципальном районе»","Фатыхова Диляра Миннерасиховна"]
[162,"МБОУ «СОШ № 1 г. Мамадыш» РТ","Гарифуллина Алсу Рафиловна Миннегалиева  Гөлназ Салахетдиновна Шаһиева Энҗе Рафаилевна"]
[163,"МБОУ \"Малокирменская ООШ\"","Гимазова Фирдания Хасбатулловна"]
[164,"Муниципальное бюджетное общеобразовательное учреждение \"Средняя общеобразовательная школа №41 города Набережные Челны\"","Кузнецова Ольга Владимировна"]
[165,"МБОУ \"Гимназия №1\" имени Мусы Джалиля г. Нижнекамска РТ","Гиздатуллина Эльмира Мирзагитовна","выступление"]
[166,"МБОУ \"Гимназия №1\" имени Мусы Джалиля г. Нижнекамска РТ","Фалахиева Ильмира Ризатдиновна Хайруллина Гульнара Илсуровна"]
[167,"Муниципальное бюджетное образовательное  учереждение \"Сармановская  средняя общеобразовательная школа\" ","Валитова  Лилия Исламовна",null,"5,5 страниц"]
[168,"МБОУ «Школа № 9 с углубленным изучением английского языка» Ново-Савиновского района г.Казани","Хуснутдинова Динара Рамилевна"]
[169,"МБОУ \"Гимназия № 2\" имени Баки урманче НМР РТ","Сергеева Гульназ Сунгатулловна"]
[170,"МБОУ \"Средняя общеобразовательная школа № 19\" НМР РТ","Маслова Ирина Евгеньевна"]
[171,"МБОУ СОШ № 41 г. Набережные Челны","Максимова Юлия Олеговна, Бербасова Анастасия Михайловна"]
[172,"МБОУ \"Нижнеошминская СОШ\" Мамадышского муниципального района Республики Татарстан","Садриева Наиля Рамилевна"]
[173,"МБОУ «Лицей №2 им.ак. К.А. Валиева г. Мамадыш» Мамадышского муниципального района РТ.","Гиззатуллина З.Ф., Гилязова Л.Р."]
[174,"МБОУ \"Гимназия №2\" имени Баки Урманче г. Нижнекамск","Зарипова Аниса Газизуловна"]
[175,"Дом детсва и юношества г. Мамадыш","Валиев Ришат Маратович"]
[176,"МБДОУ ДС №12 \"Лейсен\"","Гареева Марина Валентиновна"]
[177,"МБДОУ ДС №12 \"Лейсен\"","Беловаа Валентина Викторовна, Загидуллина Миляуша Мансуровна"]
[178,"МБДОУ ДС №12 \"Лейсен\"","Марсина Наталья Викторовна"]
[179,"МБДОУ ДС №12 \"Лейсен\"","Гасимова Гульсина Гильмухановна"]
[180,"Муниципальное бюджетное общеобразовательное учреждение  \"Чарлинская средняя школа\" Кукморского муниципального района РТ","Бочкарева Светлана Михайловна"]
[181,"МБОУ \"Алгаевская начальная школа-детский сад\" Мамадышского муниципального района РТ","Гарифуллина Зиляра Ильясовна"]
[182,"Школа \"Иннополис\"\nМБОУ \"СОШ № 112 \"   Авиастроительного района г.Казани","Худжамкулова Замира Хабибрасулевна, Исламова Ольга Леонидовна"]
[183,"ГАОУ \"ШКОЛА ИННОПОЛИС\"","Гайнутдинова Резеда Рафаилевна"]
[184,"МБОУ «Лицей №2 им. ак. К.А.Валиева г.Мамадыш\"","Родина Ольга Владимировна"]
[185,"МБОУ \"Зюринская СОШ\"","Вятская Елена Александровна"]
[186,"Муниципальное общеобразовательное учреждение «Бехтеревская средняя общеобразовательная школа» Елабужского муниципального района Республики Татарстан","Вилисова  Галина  Павловна, Гольцева Альмира Анасовна\n"]
[187,"МБОУ \"Гимназия №1\" имени Мусы Джалиля г. Нижнекамска РТ","Гиздатуллина Эльмира Мирзагитовна"]
[188,"МБОУ \"Красногорская СОШ\"","Кириллова Оксана Григорьевна"]
[189,"МБОУ \"Зюринская СОШ\"","Ахмадеева Зоя Васильевна"]
[190,"МБОУ \"Лицей №2 им. ак. К.А.Валиева г.Мамадыш\" Мамадшского  муниципального района Республики Татарстан\"","Шигаева Елена Николаевна, Шишкина Юлия Александровна"]
[191,"МБОУ \"Школа №167\" г.Казань","Самигуллина Алсу Рауфовна"]
[192,"МБОУ \"Лицей № 2 им. ак. К. А. Валиева г. Мамадыш\"","Маякова Елизавета Ефимовна Никифорова Елена Михайловна Лукманова Ильнара Нагимовна"]
[193,"МБОУ \"Лицей № 2 им. ак. К. А. Валиева г. Мамадыш\"","Талипова Фаягуль Равилевна"]
[194,"МАОУ \"Гимназия № 76\" г. Набережные Челны","Рабаданова Гульнара Магомедовна"]
[195,"МБОУ \"Зюринская СОШ\"","Гаврилова Марина Николаевна"]

{"sheet":"Лист1","index":14,"n_rows":13,"n_cols":10,"rows_kept":13}
[]
[{"$nulls":8},"итого",{"$f":"SUM(C3:C20)","v":356}]
[null,"история",{"$f":"История!A186","v":32}]
[null,"география",{"$f":"География!A95","v":6}]
[null,"физика",{"$f":"Физика!A100","v":11}]
[null,"химия",{"$f":"Химия!A92","v":45}]
[null,"труд",{"$f":"'труд '!A44","v":16}]
[null,"английский",{"$f":"английский!A60","v":24}]
[null,"русский ",{"$f":"'Русский '!A49","v":25}]
[null,"математика",{"$f":"Математика!A36","v":28}]
[null,"татарский",{"$f":"'Татарский '!A28","v":13}]
[null,"начальные",{"$f":"'Юный '!A155","v":154}]
[null,"студент",2]